{"text_format":"1","workbook":"xlsx","n_sheets":15,"sheets":["Janvier","Février","Mars","Avril","Mai","Juin","Juillet","Août","Septembre","Octobre","Novembre","Décembre","Noms des salariés","LEGENDE","RECAP 2023"],"not_rendered":{"charts":0,"images":0,"macros":0,"external_links":0,"defined_names":53,"comments":0,"pivot_tables":0},"unopened":[],"bounds":{"document_bytes":16777216,"sheet_cells":100000,"rows_first":2000,"rows_last":500,"rows_between":2000,"halvings":0,"cell_chars":16384,"cell_head_chars":4096},"cells_cut":0,"cells_raw":0,"read":"whole","date_system":"1900"}

{"sheet":"Janvier","index":0,"n_rows":53,"n_cols":34,"rows_kept":53,"cut":false,"hidden":false,"merged":[[5,2,5,32]]}
[null,"Calendrier des absences des employés"]
[null,"Janvier",{"$f":"MONTH(DATEVALUE(B2&\" 1\"))","v":1}]
[]
[null,"Clé de motif d’absence","C","Congé",null,"P","Privé","M","Maladie","T","Test","ESE","Entretien ",null,"R","Réunion",null,"TT","Télétravail",null,"F","Forum",null,"TT"]
[null,null,{"$f":"DATE($AH$6,$C$2,C$8)","v":"2024-01-01"},{"$f":"DATE($AH$6,$C$2,D$8)","v":"2024-01-02"},"2024-01-03","2024-01-04","2024-01-05","2024-01-06","2024-01-07","2024-01-08","2024-01-09","2024-01-10","2024-01-11","2024-01-12","2024-01-13","2024-01-14","2024-01-15","2024-01-16","2024-01-17","2024-01-18","2024-01-19","2024-01-20",{"$f":"DATE($AH$6,$C$2,W$8)","v":"2024-01-21"},"2024-01-22","2024-01-23","2024-01-24","2024-01-25","2024-01-26","2024-01-27","2024-01-28","2024-01-29","2024-01-30","2024-01-31"]
[null,null,"Dates d’absence",null,null,null,null,null,null,null,null,null,null,null,null,null,null,null,null,null,null,null,null,null,null,null,null,null,null,null,null,null,null,2024]
[null,null,{"$f":"TEXT(WEEKDAY(C5),\"jjj\")","v":"lun"},"mar","mer","jeu","ven","sam","dim","lun","mar","mer","jeu","ven","sam","dim","lun","mar","mer","jeu","ven","sam","dim","lun","mar","mer","jeu","ven","sam","dim","lun","mar","mer"]
[null,"Nom de l’employé","1","2","3","4","5","6","7","8","9","10","11","12","13","14","15","16","17","18","19","20","21","22","23","24","25","26","27","28","29","30","31","Total des jours"]
[null,"Laure PALACIN",null,null,null,null,null,null,null,null,null,null,null,null,null,null,null,null,null,null,null,null,null,null,null,null,null,null,null,null,null,null,null,{"$f":"COUNTA($C9:$AG9)","v":0}]
[null,null,null,null,null,null,null,null,null,null,null,null,null,null,null,null,null,null,null,null,null,null,null,null,null,null,null,null,null,null,null,null,null,{"$f":"COUNTA($C10:$AG10)","v":0}]
[null,"Sandrine CAFAFA",null,null,null,null,null,null,null,null,null,null,null,null,null,null,null,null,null,null,null,null,null,null,null,null,null,null,null,null,null,null,null,0]
[null,null,null,null,null,null,null,null,null,null,null,null,null,null,null,null,null,null,null,null,null,null,null,null,null,null,null,null,null,null,null,null,null,{"$f":"COUNTA($C12:$AG12)","v":0}]
[null,"Anifa BOUKHRISS",null,null,null,null,null,null,null,null,null,null,null,null,null,null,null,null,null,null,null,null,null,null,null,null,null,null,null,null,null,null,null,0]
[null,null,null,null,null,null,null,null,null,null,null,null,null,null,null,null,null,null,null,null,null,null,null,null,null,null,null,null,null,null,null,null,null,{"$f":"COUNTA($C14:$AG14)","v":0}]
[null,"Valérie BONVEL",null,null,null,null,null,null,null,null,null,null,null,null,null,null,null,null,null,null,null,null,null,null,null,null,null,null,null,null,null,null,null,0]
[null,null,null,null,null,null,null,null,null,null,null,null,null,null,null,null,null,null,null,null,null,null,null,null,null,null,null,null,null,null,null,null,null,{"$f":"COUNTA($C16:$AG16)","v":0}]
[null,"Alexandre KIOSSES",null,null,null,null,null,null,null,null,null,null,null,null,null,null,null,null,null,null,null,null,null,null,null,null,null,null,null,null,null,null,null,0]
[null,null,null,null,null,null,null,null,null,null,null,null,null,null,null,null,null,null,null,null,null,null,null,null,null,null,null,null,null,null,null,null,null,{"$f":"COUNTA($C18:$AG18)","v":0}]
[null,"Isabelle SANTERRE",null,null,null,null,null,null,null,null,null,null,null,null,null,null,null,null,null,null,null,null,null,null,null,null,null,null,null,null,null,null,null,0]
[null,null,null,null,null,null,null,null,null,null,null,null,null,null,null,null,null,null,null,null,null,null,null,null,null,null,null,null,null,null,null,null,null,{"$f":"COUNTA($C20:$AG20)","v":0}]
[null,"Madeline VENTURA",null,null,null,null,null,null,null,null,null,null,null,null,null,null,null,null,null,null,null,null,null,null,null,null,null,null,null,null,null,null,null,0]
[null,null,null,null,null,null,null,null,null,null,null,null,null,null,null,null,null,null,null,null,null,null,null,null,null,null,null,null,null,null,null,null,null,{"$f":"COUNTA($C22:$AG22)","v":0}]
[null,"Hamida MAHI",null,null,null,null,null,null,null,null,null,null,null,null,null,null,null,null,null,null,null,null,null,null,null,null,null,null,null,null,null,null,null,0]
[null,null,null,null,null,null,null,null,null,null,null,null,null,null,null,null,null,null,null,null,null,null,null,null,null,null,null,null,null,null,null,null,null,{"$f":"COUNTA($C24:$AG24)","v":0}]
[null,"Isabelle GIESECKE",null,null,null,null,null,null,null,null,null,null,null,null,null,null,null,null,null,null,null,null,null,null,null,null,null,null,null,null,null,null,null,0]
[null,null,null,null,null,null,null,null,null,null,null,null,null,null,null,null,null,null,null,null,null,null,null,null,null,null,null,null,null,null,null,null,null,{"$f":"COUNTA($C26:$AG26)","v":0}]
[null,"Sandrine POIRSOIN",null,null,null,null,null,null,null,null,null,null,null,null,null,null,null,null,null,null,null,null,null,null,null,null,null,null,null,null,null,null,null,0]
[null,null,null,null,null,null,null,null,null,null,null,null,null,null,null,null,null,null,null,null,null,null,null,null,null,null,null,null,null,null,null,null,null,{"$f":"COUNTA($C28:$AG28)","v":0}]
[null,"Florence MASSIE",null,null,null,null,null,null,null,null,null,null,null,null,null,null,null,null,null,null,null,null,null,null,null,null,null,null,null,null,null,null,null,0]
[null,null,null,null,null,null,null,null,null,null,null,null,null,null,null,null,null,null,null,null,null,null,null,null,null,null,null,null,null,null,null,null,null,{"$f":"COUNTA($C30:$AG30)","v":0}]
[null,"Rym ARAB",null,null,null,null,null,null,null,null,null,null,null,null,null,null,null,null,null,null,null,null,null,null,null,null,null,null,null,null,null,null,null,0]
[null,null,null,null,null,null,null,null,null,null,null,null,null,null,null,null,null,null,null,null,null,null,null,null,null,null,null,null,null,null,null,null,null,{"$f":"COUNTA($C32:$AG32)","v":0}]
[null,"Benoit DUPRE",null,null,null,null,null,null,null,null,null,null,null,null,null,null,null,null,null,null,null,null,null,null,null,null,null,null,null,null,null,null,null,0]
[null,null,null,null,null,null,null,null,null,null,null,null,null,null,null,null,null,null,null,null,null,null,null,null,null,null,null,null,null,null,null,null,null,{"$f":"COUNTA($C34:$AG34)","v":0}]
[null,"Bénédicte REBAGLIATO",null,null,null,null,null,null,null,null,null,null,null,null,null,null,null,null,null,null,null,null,null,null,null,null,null,null,null,null,null,null,null,0]
[null,null,null,null,null,null,null,null,null,null,null,null,null,null,null,null,null,null,null,null,null,null,null,null,null,null,null,null,null,null,null,null,null,{"$f":"COUNTA($C36:$AG36)","v":0}]
[null,"Eliott ARNOLD",null,null,null,null,null,null,null,null,null,null,null,null,null,null,null,null,null,null,null,null,null,null,null,null,null,null,null,null,null,null,null,0]
[null,null,null,null,null,null,null,null,null,null,null,null,null,null,null,null,null,null,null,null,null,null,null,null,null,null,null,null,null,null,null,null,null,{"$f":"COUNTA($C38:$AG38)","v":0}]
[null,"Vincent DEBENNE",null,null,null,null,null,null,null,null,null,null,null,null,null,null,null,null,null,null,null,null,null,null,null,null,null,null,null,null,null,null,null,0]
[null,null,null,null,null,null,null,null,null,null,null,null,null,null,null,null,null,null,null,null,null,null,null,null,null,null,null,null,null,null,null,null,null,{"$f":"COUNTA($C40:$AG40)","v":0}]
[null,"Céline GEOFFROY",null,null,null,null,null,null,null,null,null,null,null,null,null,null,null,null,null,null,null,null,null,null,null,null,null,null,null,null,null,null,null,0]
[null,null,null,null,null,null,null,null,null,null,null,null,null,null,null,null,null,null,null,null,null,null,null,null,null,null,null,null,null,null,null,null,null,{"$f":"COUNTA($C42:$AG42)","v":0}]
[null,null,null,null,null,null,null,null,null,null,null,null,null,null,null,null,null,null,null,null,null,null,null,null,null,null,null,null,null,null,null,null,null,0]
[null,null,null,null,null,null,null,null,null,null,null,null,null,null,null,null,null,null,null,null,null,null,null,null,null,null,null,null,null,null,null,null,null,0]
[null,null,null,null,null,null,null,null,null,null,null,null,null,null,null,null,null,null,null,null,null,null,null,null,null,null,null,null,null,null,null,null,null,0]
[null,null,null,null,null,null,null,null,null,null,null,null,null,null,null,null,null,null,null,null,null,null,null,null,null,null,null,null,null,null,null,null,null,0]
[null,null,null,null,null,null,null,null,null,null,null,null,null,null,null,null,null,null,null,null,null,null,null,null,null,null,null,null,null,null,null,null,null,0]
[null,null,null,null,null,null,null,null,null,null,null,null,null,null,null,null,null,null,null,null,null,null,null,null,null,null,null,null,null,null,null,null,null,0]
[null,null,null,null,null,null,null,null,null,null,null,null,null,null,null,null,null,null,null,null,null,null,null,null,null,null,null,null,null,null,null,null,null,0]
[null,null,null,null,null,null,null,null,null,null,null,null,null,null,null,null,null,null,null,null,null,null,null,null,null,null,null,null,null,null,null,null,null,0]
[null,null,null,null,null,null,null,null,null,null,null,null,null,null,null,null,null,null,null,null,null,null,null,null,null,null,null,null,null,null,null,null,null,0]
[]
[null,null,{"$f":"SUBTOTAL(103,C$9:C$52)","v":0},0,0,0,0,0,0,0,0,0,0,0,0,0,0,0,0,0,0,0,0,0,0,0,0,0,0,0,0,0,0,{"$f":"SUBTOTAL(109,Janvier[Total des jours])","v":0}]

{"sheet":"Février","index":1,"n_rows":53,"n_cols":34,"rows_kept":53,"cut":false,"hidden":false,"merged":[[5,2,5,32]]}
[null,"Calendrier des absences des employés"]
[null,"Février",{"$f":"MONTH(DATEVALUE(B2&\" 1\"))","v":2}]
[]
[null,"Clé de motif d’absence","C","Congé",null,"P","Privé","M","Maladie","T","Test","ESE","Entretien ",null,"R","Réunion",null,"TT","Télétravail",null,"F","Forum",null,"TT"]
[null,null,{"$f":"DATE($AH$6,$C$2,C$8)","v":"2024-02-01"},{"$f":"DATE($AH$6,$C$2,D$8)","v":"2024-02-02"},"2024-02-03","2024-02-04","2024-02-05","2024-02-06","2024-02-07","2024-02-08","2024-02-09","2024-02-10","2024-02-11","2024-02-12","2024-02-13","2024-02-14","2024-02-15","2024-02-16","2024-02-17","2024-02-18","2024-02-19","2024-02-20","2024-02-21","2024-02-22","2024-02-23","2024-02-24","2024-02-25","2024-02-26","2024-02-27","2024-02-28","2024-02-29","2024-03-01","2024-03-02"]
[null,null,"Dates d’absence",null,null,null,null,null,null,null,null,null,null,null,null,null,null,null,null,null,null,null,null,null,null,null,null,null,null,null,null,null,null,2024]
[null,null,{"$f":"TEXT(WEEKDAY(C5),\"jjj\")","v":"jeu"},{"$f":"TEXT(WEEKDAY(D5),\"jjj\")","v":"ven"},"sam","dim","lun","mar","mer","jeu","ven","sam","dim","lun","mar","mer","jeu","ven","sam","dim","lun","mar","mer","jeu","ven","sam","dim","lun","mar","mer","jeu","ven","sam"]
[null,"Nom de l’employé","1","2","3","4","5","6","7","8","9","10","11","12","13","14","15","16","17","18","19","20","21","22","23","24","25","26","27","28","29","30","31","Total des jours"]
[null,"Laure PALACIN",null,null,null,null,null,null,null,null,null,null,null,null,null,null,null,null,null,null,null,null,null,null,null,null,null,null,null,null,null,null,null,{"$f":"COUNTA($C9:$AG9)","v":0}]
[null,null,null,null,null,null,null,null,null,null,null,null,null,null,null,null,null,null,null,null,null,null,null,null,null,null,null,null,null,null,null,null,null,0]
[null,"Sandrine CAFAFA",null,null,null,null,null,null,null,null,null,null,null,null,null,null,null,null,null,null,null,null,null,null,null,null,null,null,null,null,null,null,null,0]
[null,null,null,null,null,null,null,null,null,null,null,null,null,null,null,null,null,null,null,null,null,null,null,null,null,null,null,null,null,null,null,null,null,0]
[null,"Anifa BOUKHRISS",null,null,null,null,null,null,null,null,null,null,null,null,null,null,null,null,null,null,null,null,null,null,null,null,null,null,null,null,null,null,null,0]
[null,null,null,null,null,null,null,null,null,null,null,null,null,null,null,null,null,null,null,null,null,null,null,null,null,null,null,null,null,null,null,null,null,0]
[null,"Valérie BONVEL",null,null,null,null,null,null,null,null,null,null,null,null,null,null,null,null,null,null,null,null,null,null,null,null,null,null,null,null,null,null,null,0]
[null,null,null,null,null,null,null,null,null,null,null,null,null,null,null,null,null,null,null,null,null,null,null,null,null,null,null,null,null,null,null,null,null,0]
[null,"Alexandre KIOSSES",null,null,null,null,null,null,null,null,null,null,null,null,null,null,null,null,null,null,null,null,null,null,null,null,null,null,null,null,null,null,null,0]
[null,null,null,null,null,null,null,null,null,null,null,null,null,null,null,null,null,null,null,null,null,null,null,null,null,null,null,null,null,null,null,null,null,0]
[null,"Isabelle SANTERRE",null,null,null,null,null,null,null,null,null,null,null,null,null,null,null,null,null,null,null,null,null,null,null,null,null,null,null,null,null,null,null,0]
[null,null,null,null,null,null,null,null,null,null,null,null,null,null,null,null,null,null,null,null,null,null,null,null,null,null,null,null,null,null,null,null,null,0]
[null,"Madeline VENTURA",null,null,null,null,null,null,null,null,null,null,null,null,null,null,null,null,null,null,null,null,null,null,null,null,null,null,null,null,null,null,null,0]
[null,null,null,null,null,null,null,null,null,null,null,null,null,null,null,null,null,null,null,null,null,null,null,null,null,null,null,null,null,null,null,null,null,0]
[null,"Hamida MAHI",null,null,null,null,null,null,null,null,null,null,null,null,null,null,null,null,null,null,null,null,null,null,null,null,null,null,null,null,null,null,null,0]
[null,null,null,null,null,null,null,null,null,null,null,null,null,null,null,null,null,null,null,null,null,null,null,null,null,null,null,null,null,null,null,null,null,0]
[null,"Isabelle GIESECKE",null,null,null,null,null,null,null,null,null,null,null,null,null,null,null,null,null,null,null,null,null,null,null,null,null,null,null,null,null,null,null,0]
[null,null,null,null,null,null,null,null,null,null,null,null,null,null,null,null,null,null,null,null,null,null,null,null,null,null,null,null,null,null,null,null,null,0]
[null,"Sandrine POIRSOIN",null,null,null,null,null,null,null,null,null,null,null,null,null,null,null,null,null,null,null,null,null,null,null,null,null,null,null,null,null,null,null,0]
[null,null,null,null,null,null,null,null,null,null,null,null,null,null,null,null,null,null,null,null,null,null,null,null,null,null,null,null,null,null,null,null,null,0]
[null,"Florence MASSIE",null,null,null,null,null,null,null,null,null,null,null,null,null,null,null,null,null,null,null,null,null,null,null,null,null,null,null,null,null,null,null,0]
[null,null,null,null,null,null,null,null,null,null,null,null,null,null,null,null,null,null,null,null,null,null,null,null,null,null,null,null,null,null,null,null,null,0]
[null,"Rym ARAB",null,null,null,null,null,null,null,null,null,null,null,null,null,null,null,null,null,null,null,null,null,null,null,null,null,null,null,null,null,null,null,0]
[null,null,null,null,null,null,null,null,null,null,null,null,null,null,null,null,null,null,null,null,null,null,null,null,null,null,null,null,null,null,null,null,null,0]
[null,"Benoit DUPRE",null,null,null,null,null,null,null,null,null,null,null,null,null,null,null,null,null,null,null,null,null,null,null,null,null,null,null,null,null,null,null,0]
[null,null,null,null,null,null,null,null,null,null,null,null,null,null,null,null,null,null,null,null,null,null,null,null,null,null,null,null,null,null,null,null,null,{"$f":"COUNTA($C34:$AG34)","v":0}]
[null,"Bénédicte REBAGLIATO",null,null,null,null,null,null,null,null,null,null,null,null,null,null,null,null,null,null,null,null,null,null,null,null,null,null,null,null,null,null,null,0]
[null,null,null,null,null,null,null,null,null,null,null,null,null,null,null,null,null,null,null,null,null,null,null,null,null,null,null,null,null,null,null,null,null,0]
[null,"Eliott ARNOLD",null,null,null,null,null,null,null,null,null,null,null,null,null,null,null,null,null,null,null,null,null,null,null,null,null,null,null,null,null,null,null,0]
[null,null,null,null,null,null,null,null,null,null,null,null,null,null,null,null,null,null,null,null,null,null,null,null,null,null,null,null,null,null,null,null,null,0]
[null,"Vincent DEBENNE",null,null,null,null,null,null,null,null,null,null,null,null,null,null,null,null,null,null,null,null,null,null,null,null,null,null,null,null,null,null,null,0]
[null,null,null,null,null,null,null,null,null,null,null,null,null,null,null,null,null,null,null,null,null,null,null,null,null,null,null,null,null,null,null,null,null,0]
[null,"Céline GEOFFROY",null,null,null,null,null,null,null,null,null,null,null,null,null,null,null,null,null,null,null,null,null,null,null,null,null,null,null,null,null,null,null,0]
[null,null,null,null,null,null,null,null,null,null,null,null,null,null,null,null,null,null,null,null,null,null,null,null,null,null,null,null,null,null,null,null,null,0]
[null,null,null,null,null,null,null,null,null,null,null,null,null,null,null,null,null,null,null,null,null,null,null,null,null,null,null,null,null,null,null,null,null,0]
[null,null,null,null,null,null,null,null,null,null,null,null,null,null,null,null,null,null,null,null,null,null,null,null,null,null,null,null,null,null,null,null,null,0]
[null,null,null,null,null,null,null,null,null,null,null,null,null,null,null,null,null,null,null,null,null,null,null,null,null,null,null,null,null,null,null,null,null,0]
[null,null,null,null,null,null,null,null,null,null,null,null,null,null,null,null,null,null,null,null,null,null,null,null,null,null,null,null,null,null,null,null,null,0]
[null,null,null,null,null,null,null,null,null,null,null,null,null,null,null,null,null,null,null,null,null,null,null,null,null,null,null,null,null,null,null,null,null,0]
[null,null,null,null,null,null,null,null,null,null,null,null,null,null,null,null,null,null,null,null,null,null,null,null,null,null,null,null,null,null,null,null,null,0]
[null,null,null,null,null,null,null,null,null,null,null,null,null,null,null,null,null,null,null,null,null,null,null,null,null,null,null,null,null,null,null,null,null,0]
[null,null,null,null,null,null,null,null,null,null,null,null,null,null,null,null,null,null,null,null,null,null,null,null,null,null,null,null,null,null,null,null,null,0]
[null,null,null,null,null,null,null,null,null,null,null,null,null,null,null,null,null,null,null,null,null,null,null,null,null,null,null,null,null,null,null,null,null,0]
[null,null,null,null,null,null,null,null,null,null,null,null,null,null,null,null,null,null,null,null,null,null,null,null,null,null,null,null,null,null,null,null,null,0]
[null,null,{"$f":"SUBTOTAL(103,C$9:C$52)","v":0},0,0,0,0,0,0,0,0,0,0,0,0,0,0,0,0,0,0,0,0,0,0,0,0,0,0,0,0,0,0,{"$f":"SUBTOTAL(109,Janvier7[Total des jours])","v":0}]

{"sheet":"Mars","index":2,"n_rows":53,"n_cols":34,"rows_kept":53,"cut":false,"hidden":false,"merged":[[5,2,5,32]]}
[null,"Calendrier des absences des employés"]
[null,"Mars",{"$f":"MONTH(DATEVALUE(B2&\" 1\"))","v":3}]
[]
[null,"Clé de motif d’absence","C","Congé",null,"P","Privé","M","Maladie","T","Test","ESE","Entretien ",null,"R","Réunion",null,"TT","Télétravail",null,"F","Forum",null,"TT"]
[null,null,{"$f":"DATE($AH$6,$C$2,C$8)","v":"2024-03-01"},{"$f":"DATE($AH$6,$C$2,D$8)","v":"2024-03-02"},"2024-03-03","2024-03-04","2024-03-05","2024-03-06","2024-03-07","2024-03-08","2024-03-09","2024-03-10","2024-03-11","2024-03-12","2024-03-13","2024-03-14","2024-03-15","2024-03-16","2024-03-17","2024-03-18","2024-03-19","2024-03-20","2024-03-21","2024-03-22","2024-03-23","2024-03-24","2024-03-25","2024-03-26","2024-03-27","2024-03-28","2024-03-29","2024-03-30","2024-03-31"]
[null,null,"Dates d’absence",null,null,null,null,null,null,null,null,null,null,null,null,null,null,null,null,null,null,null,null,null,null,null,null,null,null,null,null,null,null,2024]
[null,null,{"$f":"TEXT(WEEKDAY(C5),\"jjj\")","v":"ven"},{"$f":"TEXT(WEEKDAY(D5),\"jjj\")","v":"sam"},"dim","lun","mar","mer","jeu","ven","sam","dim","lun","mar","mer","jeu","ven","sam","dim","lun","mar","mer","jeu","ven","sam","dim","lun","mar","mer","jeu","ven","sam","dim"]
[null,"Nom de l’employé","1","2","3","4","5","6","7","8","9","10","11","12","13","14","15","16","17","18","19","20","21","22","23","24","25","26","27","28","29","30","31","Total des jours"]
[null,"Laure PALACIN",null,null,null,null,null,null,null,null,null,null,null,null,null,null,null,null,null,null,null,null,null,null,null,null,null,null,null,null,null,null,null,{"$f":"COUNTA($C9:$AG9)","v":0}]
[null,null,null,null,null,null,null,null,null,null,null,null,null,null,null,null,null,null,null,null,null,null,null,null,null,null,null,null,null,null,null,null,null,0]
[null,"Sandrine CAFAFA",null,null,null,null,null,null,null,null,null,null,null,null,null,null,null,null,null,null,null,null,null,null,null,null,null,null,null,null,null,null,null,0]
[null,null,null,null,null,null,null,null,null,null,null,null,null,null,null,null,null,null,null,null,null,null,null,null,null,null,null,null,null,null,null,null,null,0]
[null,"Anifa BOUKHRISS",null,null,null,null,null,null,null,null,null,null,null,null,null,null,null,null,null,null,null,null,null,null,null,null,null,null,null,null,null,null,null,0]
[null,null,null,null,"T RFN Ψ",null,null,null,null,null,null,null,null,null,null,null,null,null,null,null,null,null,null,null,null,null,null,null,null,null,null,null,null,1]
[null,"Valérie BONVEL",null,null,null,null,null,null,null,null,null,null,null,null,null,null,null,null,null,null,null,null,null,null,null,null,null,null,null,null,null,null,null,0]
[null,null,null,null,null,null,null,null,null,null,null,null,null,null,null,null,null,null,null,null,null,null,null,null,null,null,null,null,null,null,null,null,null,0]
[null,"Alexandre KIOSSES",null,null,null,null,null,null,null,null,null,null,null,null,null,null,null,null,null,null,null,null,null,null,null,null,null,null,null,null,null,null,null,0]
[null,null,null,null,null,null,null,"T MOB AAM",null,null,null,null,null,null,null,null,null,null,null,null,null,null,null,null,null,null,null,null,null,null,null,null,null,1]
[null,"Isabelle SANTERRE",null,null,null,null,null,null,null,null,null,null,null,null,null,null,null,null,null,null,null,null,null,null,null,null,null,null,null,null,null,null,null,0]
[null,null,null,null,null,null,null,null,null,null,null,null,null,null,null,null,null,null,null,null,null,null,null,null,null,null,null,null,null,null,null,null,null,0]
[null,"Madeline VENTURA",null,null,"CAE",null,null,null,null,null,null,null,null,null,null,null,null,null,null,null,null,null,null,null,null,null,null,null,null,null,null,null,null,1]
[null,null,null,null,null,null,null,null,null,null,null,null,null,null,null,null,null,null,null,null,null,null,null,null,null,null,null,null,null,null,null,null,null,0]
[null,"Hamida MAHI",null,null,null,null,null,null,null,null,null,null,null,null,null,null,null,null,null,null,null,null,null,null,null,null,null,null,null,null,null,null,null,0]
[null,null,null,null,null,null,null,"ESE CDR",null,null,null,null,null,null,null,null,null,null,null,null,null,null,null,null,null,null,null,null,null,null,null,null,null,1]
[null,"Isabelle GIESECKE",null,null,null,null,null,null,null,null,null,null,null,null,null,null,null,null,null,null,null,null,null,null,null,null,null,null,null,null,null,null,null,0]
[null,null,null,null,null,null,null,null,null,null,null,null,null,null,null,null,null,null,null,null,null,null,null,null,null,null,null,null,null,null,null,null,null,0]
[null,"Sandrine POIRSOIN",null,null,null,null,null,null,null,null,null,null,null,null,null,null,null,null,null,null,null,null,null,null,null,null,null,null,null,null,null,null,null,0]
[null,null,null,null,null,"T MOB CDR Ψ",null,null,null,null,null,null,null,null,null,null,null,null,null,null,null,null,null,null,null,null,null,null,null,null,null,null,null,1]
[null,"Florence MASSIE",null,null,null,null,null,null,null,null,null,null,null,null,null,null,null,null,null,null,null,null,null,null,null,null,null,null,null,null,null,null,null,0]
[null,null,null,null,null,null,null,null,null,null,null,null,null,null,null,null,null,null,null,null,null,null,null,null,null,null,null,null,null,null,null,null,null,0]
[null,"Rym ARAB",null,null,null,null,null,null,null,null,null,null,null,null,null,null,null,null,null,null,null,null,null,null,null,null,null,null,null,null,null,null,null,0]
[null,null,null,null,null,null,null,null,null,null,null,null,null,null,null,null,null,null,null,null,null,null,null,null,null,null,null,null,null,null,null,null,null,0]
[null,"Benoit DUPRE",null,null,null,null,null,null,null,null,null,null,null,null,null,null,null,null,null,null,null,null,null,null,null,null,null,null,null,null,null,null,null,0]
[null,null,null,null,null,null,null,null,null,null,null,null,null,null,null,null,null,null,null,null,null,null,null,null,null,null,null,null,null,null,null,null,null,{"$f":"COUNTA($C34:$AG34)","v":0}]
[null,"Bénédicte REBAGLIATO",null,null,null,null,null,null,null,null,null,null,null,null,null,null,null,null,null,null,null,null,null,null,null,null,null,null,null,null,null,null,null,0]
[null,null,null,null,null,null,null,null,null,null,null,null,null,null,null,null,null,null,null,null,null,null,null,null,null,null,null,null,null,null,null,null,null,0]
[null,"Eliott ARNOLD",null,null,null,null,null,null,null,null,null,null,null,null,null,null,null,null,null,null,null,null,null,null,null,null,null,null,null,null,null,null,null,0]
[null,null,null,null,null,null,null,null,null,null,null,null,null,null,null,null,null,null,null,null,null,null,null,null,null,null,null,null,null,null,null,null,null,0]
[null,"Vincent DEBENNE",null,null,null,null,null,null,null,null,null,null,null,null,null,null,null,null,null,null,null,null,null,null,null,null,null,null,null,null,null,null,null,0]
[null,null,null,null,null,null,null,null,null,null,null,null,null,null,null,null,null,null,null,null,null,null,null,null,null,null,null,null,null,null,null,null,null,0]
[null,"Céline GEOFFROY",null,null,null,null,null,null,null,null,null,null,null,null,null,null,null,null,null,null,null,null,null,null,null,null,null,null,null,null,null,null,null,0]
[null,null,null,null,null,null,null,null,null,null,null,null,null,null,null,null,null,null,null,null,null,null,null,null,null,null,null,null,null,null,null,null,null,0]
[null,null,null,null,null,null,null,null,null,null,null,null,null,null,null,null,null,null,null,null,null,null,null,null,null,null,null,null,null,null,null,null,null,0]
[null,null,null,null,null,null,null,null,null,null,null,null,null,null,null,null,null,null,null,null,null,null,null,null,null,null,null,null,null,null,null,null,null,0]
[null,null,null,null,null,null,null,null,null,null,null,null,null,null,null,null,null,null,null,null,null,null,null,null,null,null,null,null,null,null,null,null,null,0]
[null,null,null,null,null,null,null,null,null,null,null,null,null,null,null,null,null,null,null,null,null,null,null,null,null,null,null,null,null,null,null,null,null,0]
[null,null,null,null,null,null,null,null,null,null,null,null,null,null,null,null,null,null,null,null,null,null,null,null,null,null,null,null,null,null,null,null,null,0]
[null,null,null,null,null,null,null,null,null,null,null,null,null,null,null,null,null,null,null,null,null,null,null,null,null,null,null,null,null,null,null,null,null,0]
[null,null,null,null,null,null,null,null,null,null,null,null,null,null,null,null,null,null,null,null,null,null,null,null,null,null,null,null,null,null,null,null,null,0]
[null,null,null,null,null,null,null,null,null,null,null,null,null,null,null,null,null,null,null,null,null,null,null,null,null,null,null,null,null,null,null,null,null,0]
[null,null,null,null,null,null,null,null,null,null,null,null,null,null,null,null,null,null,null,null,null,null,null,null,null,null,null,null,null,null,null,null,null,0]
[null,null,null,null,null,null,null,null,null,null,null,null,null,null,null,null,null,null,null,null,null,null,null,null,null,null,null,null,null,null,null,null,null,0]
[null,null,{"$f":"SUBTOTAL(103,C$9:C$52)","v":0},0,2,1,0,2,0,0,0,0,0,0,0,0,0,0,0,0,0,0,0,0,0,0,0,0,0,0,0,0,0,{"$f":"SUBTOTAL(109,Janvier9[Total des jours])","v":5}]

{"sheet":"Avril","index":3,"n_rows":53,"n_cols":34,"rows_kept":53,"cut":false,"hidden":false,"merged":[[5,2,5,32]]}
[null,"Calendrier des absences des employés"]
[null,"Avril"]
[]
[null,"Clé de motif d’absence","C","Congé",null,"P","Privé","M","Maladie","T","Test","ESE","Entretien ",null,"R","Réunion",null,"TT","Télétravail",null,"F","Forum",null,"TT"]
[]
[null,null,"Dates d’absence",null,null,null,null,null,null,null,null,null,null,null,null,null,null,null,null,null,null,null,null,null,null,null,null,null,null,null,null,null,null,2024]
[null,null,{"$f":"TEXT(WEEKDAY(DATE(CalendarYear,4,1),1),\"jjj\")","v":"lun"},{"$f":"TEXT(WEEKDAY(DATE(CalendarYear,4,2),1),\"jjj\")","v":"mar"},{"$f":"TEXT(WEEKDAY(DATE(CalendarYear,4,3),1),\"jjj\")","v":"mer"},{"$f":"TEXT(WEEKDAY(DATE(CalendarYear,4,4),1),\"jjj\")","v":"jeu"},{"$f":"TEXT(WEEKDAY(DATE(CalendarYear,4,5),1),\"jjj\")","v":"ven"},{"$f":"TEXT(WEEKDAY(DATE(CalendarYear,4,6),1),\"jjj\")","v":"sam"},{"$f":"TEXT(WEEKDAY(DATE(CalendarYear,4,7),1),\"jjj\")","v":"dim"},{"$f":"TEXT(WEEKDAY(DATE(CalendarYear,4,8),1),\"jjj\")","v":"lun"},{"$f":"TEXT(WEEKDAY(DATE(CalendarYear,4,9),1),\"jjj\")","v":"mar"},{"$f":"TEXT(WEEKDAY(DATE(CalendarYear,4,10),1),\"jjj\")","v":"mer"},{"$f":"TEXT(WEEKDAY(DATE(CalendarYear,4,11),1),\"jjj\")","v":"jeu"},{"$f":"TEXT(WEEKDAY(DATE(CalendarYear,4,12),1),\"jjj\")","v":"ven"},{"$f":"TEXT(WEEKDAY(DATE(CalendarYear,4,13),1),\"jjj\")","v":"sam"},{"$f":"TEXT(WEEKDAY(DATE(CalendarYear,4,14),1),\"jjj\")","v":"dim"},{"$f":"TEXT(WEEKDAY(DATE(CalendarYear,4,15),1),\"jjj\")","v":"lun"},{"$f":"TEXT(WEEKDAY(DATE(CalendarYear,4,16),1),\"jjj\")","v":"mar"},{"$f":"TEXT(WEEKDAY(DATE(CalendarYear,4,17),1),\"jjj\")","v":"mer"},{"$f":"TEXT(WEEKDAY(DATE(CalendarYear,4,18),1),\"jjj\")","v":"jeu"},{"$f":"TEXT(WEEKDAY(DATE(CalendarYear,4,19),1),\"jjj\")","v":"ven"},{"$f":"TEXT(WEEKDAY(DATE(CalendarYear,4,20),1),\"jjj\")","v":"sam"},{"$f":"TEXT(WEEKDAY(DATE(CalendarYear,4,21),1),\"jjj\")","v":"dim"},{"$f":"TEXT(WEEKDAY(DATE(CalendarYear,4,22),1),\"jjj\")","v":"lun"},{"$f":"TEXT(WEEKDAY(DATE(CalendarYear,4,23),1),\"jjj\")","v":"mar"},{"$f":"TEXT(WEEKDAY(DATE(CalendarYear,4,24),1),\"jjj\")","v":"mer"},{"$f":"TEXT(WEEKDAY(DATE(CalendarYear,4,25),1),\"jjj\")","v":"jeu"},{"$f":"TEXT(WEEKDAY(DATE(CalendarYear,4,26),1),\"jjj\")","v":"ven"},{"$f":"TEXT(WEEKDAY(DATE(CalendarYear,4,27),1),\"jjj\")","v":"sam"},{"$f":"TEXT(WEEKDAY(DATE(CalendarYear,4,28),1),\"jjj\")","v":"dim"},{"$f":"TEXT(WEEKDAY(DATE(CalendarYear,4,29),1),\"jjj\")","v":"lun"},{"$f":"TEXT(WEEKDAY(DATE(CalendarYear,4,30),1),\"jjj\")","v":"mar"}]
[null,"Nom de l’employé","1","2","3","4","5","6","7","8","9","10","11","12","13","14","15","16","17","18","19","20","21","22","23","24","25","26","27","28","29","30"," ","Total des jours"]
[null,"Laure PALACIN",null,null,null,null,null,null,null,null,null,null,null,null,null,null,null,null,null,null,null,null,null,null,null,null,null,null,null,null,null,null,null,{"$f":"COUNTA(March5[[#This Row],[1]:[ ]])","v":0}]
[null,null,null,null,null,null,null,null,null,null,null,null,null,null,null,null,null,null,null,null,null,null,null,null,null,null,null,null,null,null,null,null,null,{"$f":"COUNTA(March5[[#This Row],[1]:[ ]])","v":0}]
[null,"Sandrine CAFAFA",null,null,null,null,null,null,null,null,null,null,null,null,null,null,null,null,null,null,null,null,null,null,null,null,null,null,null,null,null,null,null,{"$f":"COUNTA(March5[[#This Row],[1]:[ ]])","v":0}]
[null,null,null,null,null,null,null,null,null,null,null,null,null,null,null,null,null,null,null,null,null,null,null,null,null,null,null,null,null,null,null,null,null,{"$f":"COUNTA(March5[[#This Row],[1]:[ ]])","v":0}]
[null,"Anifa BOUKHRISS",null,null,null,null,null,null,null,null,null,null,null,null,null,null,null,null,null,null,null,null,null,null,null,null,null,null,null,null,null,null,null,{"$f":"COUNTA(March5[[#This Row],[1]:[ ]])","v":0}]
[null,null,null,null,null,null,null,null,null,null,null,null,null,null,null,null,null,null,null,null,null,null,null,null,null,null,null,null,null,null,null,null,null,{"$f":"COUNTA(March5[[#This Row],[1]:[ ]])","v":0}]
[null,"Valérie BONVEL",null,null,null,null,null,null,null,null,null,null,null,null,null,null,null,null,null,null,null,null,null,null,null,null,null,null,null,null,null,null,null,{"$f":"COUNTA(March5[[#This Row],[1]:[ ]])","v":0}]
[null,null,null,null,null,null,null,null,null,null,null,null,null,null,null,null,null,null,null,null,null,null,null,null,null,null,null,null,null,null,null,null,null,{"$f":"COUNTA(March5[[#This Row],[1]:[ ]])","v":0}]
[null,"Alexandre KIOSSES",null,null,null,null,null,null,null,null,null,null,null,null,null,null,null,null,null,null,null,null,null,null,null,null,null,null,null,null,null,null,null,{"$f":"COUNTA(March5[[#This Row],[1]:[ ]])","v":0}]
[null,null,null,null,null,null,null,null,null,null,null,null,null,null,null,null,null,null,null,null,null,null,null,null,null,null,null,null,null,null,null,null,null,{"$f":"COUNTA(March5[[#This Row],[1]:[ ]])","v":0}]
[null,"Isabelle SANTERRE",null,null,null,null,null,null,null,null,null,null,null,null,null,null,null,null,null,null,null,null,null,null,null,null,null,null,null,null,null,null,null,{"$f":"COUNTA(March5[[#This Row],[1]:[ ]])","v":0}]
[null,null,null,null,null,null,null,null,null,null,null,null,null,null,null,null,null,null,null,null,null,null,null,null,null,null,null,null,null,null,null,null,null,{"$f":"COUNTA(March5[[#This Row],[1]:[ ]])","v":0}]
[null,"Madeline VENTURA",null,null,null,null,null,null,null,null,null,null,null,null,null,null,null,null,null,null,null,null,null,null,null,null,null,null,null,null,null,null,null,{"$f":"COUNTA(March5[[#This Row],[1]:[ ]])","v":0}]
[null,null,null,null,null,null,null,null,null,null,null,null,null,null,null,null,null,null,null,null,null,null,null,null,null,null,null,null,null,null,null,null,null,{"$f":"COUNTA(March5[[#This Row],[1]:[ ]])","v":0}]
[null,"Hamida MAHI",null,null,null,null,null,null,null,null,null,null,null,null,null,null,null,null,null,null,null,null,null,null,null,null,null,null,null,null,null,null,null,{"$f":"COUNTA(March5[[#This Row],[1]:[ ]])","v":0}]
[null,null,null,null,null,null,null,null,null,null,null,null,null,null,null,null,null,null,null,null,null,null,null,null,null,null,null,null,null,null,null,null,null,{"$f":"COUNTA(March5[[#This Row],[1]:[ ]])","v":0}]
[null,"Isabelle GIESECKE",null,null,null,null,null,null,null,null,null,null,null,null,null,null,null,null,null,null,null,null,null,null,null,null,null,null,null,null,null,null,null,{"$f":"COUNTA(March5[[#This Row],[1]:[ ]])","v":0}]
[null,null,null,null,null,null,null,null,null,null,null,null,null,null,null,null,null,null,null,null,null,null,null,null,null,null,null,null,null,null,null,null,null,{"$f":"COUNTA(March5[[#This Row],[1]:[ ]])","v":0}]
[null,"Sandrine POIRSOIN",null,null,null,null,null,null,null,null,null,null,null,null,null,null,null,null,null,null,null,null,null,null,null,null,null,null,null,null,null,null,null,{"$f":"COUNTA(March5[[#This Row],[1]:[ ]])","v":0}]
[null,null,null,null,null,null,null,null,null,null,null,null,null,null,null,null,null,null,null,null,null,null,null,null,null,null,null,null,null,null,null,null,null,{"$f":"COUNTA(March5[[#This Row],[1]:[ ]])","v":0}]
[null,"Florence MASSIE",null,null,null,null,null,null,null,null,null,null,null,null,null,null,null,null,null,null,null,null,null,null,null,null,null,null,null,null,null,null,null,{"$f":"COUNTA(March5[[#This Row],[1]:[ ]])","v":0}]
[null,null,null,null,null,null,null,null,null,null,null,null,null,null,null,null,null,null,null,null,null,null,null,null,null,null,null,null,null,null,null,null,null,{"$f":"COUNTA(March5[[#This Row],[1]:[ ]])","v":0}]
[null,"Rym ARAB",null,null,null,null,null,null,null,null,null,null,null,null,null,null,null,null,null,null,null,null,null,null,null,null,null,null,null,null,null,null,null,{"$f":"COUNTA(March5[[#This Row],[1]:[ ]])","v":0}]
[null,null,null,null,null,null,null,null,null,null,null,null,null,null,null,null,null,null,null,null,null,null,null,null,null,null,null,null,null,null,null,null,null,{"$f":"COUNTA(March5[[#This Row],[1]:[ ]])","v":0}]
[null,"Benoit DUPRE",null,null,null,null,null,null,null,null,null,null,null,null,null,null,null,null,null,null,null,null,null,null,null,null,null,null,null,null,null,null,null,{"$f":"COUNTA(March5[[#This Row],[1]:[ ]])","v":0}]
[null,null,null,null,null,null,null,null,null,null,null,null,null,null,null,null,null,null,null,null,null,null,null,null,null,null,null,null,null,null,null,null,null,{"$f":"COUNTA(March5[[#This Row],[1]:[ ]])","v":0}]
[null,"Bénédicte REBAGLIATO",null,null,null,null,null,null,null,null,null,null,null,null,null,null,null,null,null,null,null,null,null,null,null,null,null,null,null,null,null,null,null,{"$f":"COUNTA(March5[[#This Row],[1]:[ ]])","v":0}]
[null,null,null,null,null,null,null,null,null,null,null,null,null,null,null,null,null,null,null,null,null,null,null,null,null,null,null,null,null,null,null,null,null,{"$f":"COUNTA(March5[[#This Row],[1]:[ ]])","v":0}]
[null,"Eliott ARNOLD",null,null,null,null,null,null,null,null,null,null,null,null,null,null,null,null,null,null,null,null,null,null,null,null,null,null,null,null,null,null,null,{"$f":"COUNTA(March5[[#This Row],[1]:[ ]])","v":0}]
[null,null,null,null,null,null,null,null,null,null,null,null,null,null,null,null,null,null,null,null,null,null,null,null,null,null,null,null,null,null,null,null,null,{"$f":"COUNTA(March5[[#This Row],[1]:[ ]])","v":0}]
[null,"Vincent DEBENNE",null,null,null,null,null,null,null,null,null,null,null,null,null,null,null,null,null,null,null,null,null,null,null,null,null,null,null,null,null,null,null,{"$f":"COUNTA(March5[[#This Row],[1]:[ ]])","v":0}]
[null,null,null,null,null,null,null,null,null,null,null,null,null,null,null,null,null,null,null,null,null,null,null,null,null,null,null,null,null,null,null,null,null,{"$f":"COUNTA(March5[[#This Row],[1]:[ ]])","v":0}]
[null,"Céline GEOFFROY",null,null,null,null,null,null,null,null,null,null,null,null,null,null,null,null,null,null,null,null,null,null,null,null,null,null,null,null,null,null,null,{"$f":"COUNTA(March5[[#This Row],[1]:[ ]])","v":0}]
[null,null,null,null,null,null,null,null,null,null,null,null,null,null,null,null,null,null,null,null,null,null,null,null,null,null,null,null,null,null,null,null,null,{"$f":"COUNTA(March5[[#This Row],[1]:[ ]])","v":0}]
[null,null,null,null,null,null,null,null,null,null,null,null,null,null,null,null,null,null,null,null,null,null,null,null,null,null,null,null,null,null,null,null,null,{"$f":"COUNTA(March5[[#This Row],[1]:[ ]])","v":0}]
[null,null,null,null,null,null,null,null,null,null,null,null,null,null,null,null,null,null,null,null,null,null,null,null,null,null,null,null,null,null,null,null,null,{"$f":"COUNTA(March5[[#This Row],[1]:[ ]])","v":0}]
[null,null,null,null,null,null,null,null,null,null,null,null,null,null,null,null,null,null,null,null,null,null,null,null,null,null,null,null,null,null,null,null,null,{"$f":"COUNTA(March5[[#This Row],[1]:[ ]])","v":0}]
[null,null,null,null,null,null,null,null,null,null,null,null,null,null,null,null,null,null,null,null,null,null,null,null,null,null,null,null,null,null,null,null,null,{"$f":"COUNTA(March5[[#This Row],[1]:[ ]])","v":0}]
[null,null,null,null,null,null,null,null,null,null,null,null,null,null,null,null,null,null,null,null,null,null,null,null,null,null,null,null,null,null,null,null,null,{"$f":"COUNTA(March5[[#This Row],[1]:[ ]])","v":0}]
[null,null,null,null,null,null,null,null,null,null,null,null,null,null,null,null,null,null,null,null,null,null,null,null,null,null,null,null,null,null,null,null,null,{"$f":"COUNTA(March5[[#This Row],[1]:[ ]])","v":0}]
[null,null,null,null,null,null,null,null,null,null,null,null,null,null,null,null,null,null,null,null,null,null,null,null,null,null,null,null,null,null,null,null,null,{"$f":"COUNTA(March5[[#This Row],[1]:[ ]])","v":0}]
[null,null,null,null,null,null,null,null,null,null,null,null,null,null,null,null,null,null,null,null,null,null,null,null,null,null,null,null,null,null,null,null,null,{"$f":"COUNTA(March5[[#This Row],[1]:[ ]])","v":0}]
[null,null,null,null,null,null,null,null,null,null,null,null,null,null,null,null,null,null,null,null,null,null,null,null,null,null,null,null,null,null,null,null,null,{"$f":"COUNTA(March5[[#This Row],[1]:[ ]])","v":0}]
[null,null,null,null,null,null,null,null,null,null,null,null,null,null,null,null,null,null,null,null,null,null,null,null,null,null,null,null,null,null,null,null,null,{"$f":"COUNTA(March5[[#This Row],[1]:[ ]])","v":0}]
[null,{"$f":"NomMois&\" Total\"","v":"Avril Total"},{"$f":"SUBTOTAL(103,March5[1])","v":0},{"$f":"SUBTOTAL(103,March5[2])","v":0},{"$f":"SUBTOTAL(103,March5[3])","v":0},{"$f":"SUBTOTAL(103,March5[4])","v":0},{"$f":"SUBTOTAL(103,March5[5])","v":0},{"$f":"SUBTOTAL(103,March5[6])","v":0},{"$f":"SUBTOTAL(103,March5[7])","v":0},{"$f":"SUBTOTAL(103,March5[8])","v":0},{"$f":"SUBTOTAL(103,March5[9])","v":0},{"$f":"SUBTOTAL(103,March5[10])","v":0},{"$f":"SUBTOTAL(103,March5[11])","v":0},{"$f":"SUBTOTAL(103,March5[12])","v":0},{"$f":"SUBTOTAL(103,March5[13])","v":0},{"$f":"SUBTOTAL(103,March5[14])","v":0},{"$f":"SUBTOTAL(103,March5[15])","v":0},{"$f":"SUBTOTAL(103,March5[16])","v":0},{"$f":"SUBTOTAL(103,March5[17])","v":0},{"$f":"SUBTOTAL(103,March5[18])","v":0},{"$f":"SUBTOTAL(103,March5[19])","v":0},{"$f":"SUBTOTAL(103,March5[20])","v":0},{"$f":"SUBTOTAL(103,March5[21])","v":0},{"$f":"SUBTOTAL(103,March5[22])","v":0},{"$f":"SUBTOTAL(103,March5[23])","v":0},{"$f":"SUBTOTAL(103,March5[24])","v":0},{"$f":"SUBTOTAL(103,March5[25])","v":0},{"$f":"SUBTOTAL(103,March5[26])","v":0},{"$f":"SUBTOTAL(103,March5[27])","v":0},{"$f":"SUBTOTAL(103,March5[28])","v":0},{"$f":"SUBTOTAL(103,March5[29])","v":0},{"$f":"SUBTOTAL(109,March5[30])","v":0},{"$f":"SUBTOTAL(109,March5[[ ]])","v":0},{"$f":"SUBTOTAL(109,March5[Total des jours])","v":0}]

{"sheet":"Mai","index":4,"n_rows":53,"n_cols":34,"rows_kept":53,"cut":false,"hidden":false,"merged":[[5,2,5,32]]}
[null,"Calendrier des absences des employés"]
[null,"Mai"]
[]
[null,"Clé de motif d’absence","C","Congé",null,"P","Privé","M","Maladie","T","Test","ESE","Entretien ",null,"R","Réunion",null,"TT","Télétravail",null,"F","Forum",null,"TT"]
[]
[null,null,"Dates d’absence",null,null,null,null,null,null,null,null,null,null,null,null,null,null,null,null,null,null,null,null,null,null,null,null,null,null,null,null,null,null,2024]
[null,null,{"$f":"TEXT(WEEKDAY(DATE(CalendarYear,5,1),1),\"jjj\")","v":"mer"},{"$f":"TEXT(WEEKDAY(DATE(CalendarYear,5,2),1),\"jjj\")","v":"jeu"},{"$f":"TEXT(WEEKDAY(DATE(CalendarYear,5,3),1),\"jjj\")","v":"ven"},{"$f":"TEXT(WEEKDAY(DATE(CalendarYear,5,4),1),\"jjj\")","v":"sam"},{"$f":"TEXT(WEEKDAY(DATE(CalendarYear,5,5),1),\"jjj\")","v":"dim"},{"$f":"TEXT(WEEKDAY(DATE(CalendarYear,5,6),1),\"jjj\")","v":"lun"},{"$f":"TEXT(WEEKDAY(DATE(CalendarYear,5,7),1),\"jjj\")","v":"mar"},{"$f":"TEXT(WEEKDAY(DATE(CalendarYear,5,8),1),\"jjj\")","v":"mer"},{"$f":"TEXT(WEEKDAY(DATE(CalendarYear,5,9),1),\"jjj\")","v":"jeu"},{"$f":"TEXT(WEEKDAY(DATE(CalendarYear,5,10),1),\"jjj\")","v":"ven"},{"$f":"TEXT(WEEKDAY(DATE(CalendarYear,5,11),1),\"jjj\")","v":"sam"},{"$f":"TEXT(WEEKDAY(DATE(CalendarYear,5,12),1),\"jjj\")","v":"dim"},{"$f":"TEXT(WEEKDAY(DATE(CalendarYear,5,13),1),\"jjj\")","v":"lun"},{"$f":"TEXT(WEEKDAY(DATE(CalendarYear,5,14),1),\"jjj\")","v":"mar"},{"$f":"TEXT(WEEKDAY(DATE(CalendarYear,5,15),1),\"jjj\")","v":"mer"},{"$f":"TEXT(WEEKDAY(DATE(CalendarYear,5,16),1),\"jjj\")","v":"jeu"},{"$f":"TEXT(WEEKDAY(DATE(CalendarYear,5,17),1),\"jjj\")","v":"ven"},{"$f":"TEXT(WEEKDAY(DATE(CalendarYear,5,18),1),\"jjj\")","v":"sam"},{"$f":"TEXT(WEEKDAY(DATE(CalendarYear,5,19),1),\"jjj\")","v":"dim"},{"$f":"TEXT(WEEKDAY(DATE(CalendarYear,5,20),1),\"jjj\")","v":"lun"},{"$f":"TEXT(WEEKDAY(DATE(CalendarYear,5,21),1),\"jjj\")","v":"mar"},{"$f":"TEXT(WEEKDAY(DATE(CalendarYear,5,22),1),\"jjj\")","v":"mer"},{"$f":"TEXT(WEEKDAY(DATE(CalendarYear,5,23),1),\"jjj\")","v":"jeu"},{"$f":"TEXT(WEEKDAY(DATE(CalendarYear,5,24),1),\"jjj\")","v":"ven"},{"$f":"TEXT(WEEKDAY(DATE(CalendarYear,5,25),1),\"jjj\")","v":"sam"},{"$f":"TEXT(WEEKDAY(DATE(CalendarYear,5,26),1),\"jjj\")","v":"dim"},{"$f":"TEXT(WEEKDAY(DATE(CalendarYear,5,27),1),\"jjj\")","v":"lun"},{"$f":"TEXT(WEEKDAY(DATE(CalendarYear,5,28),1),\"jjj\")","v":"mar"},{"$f":"TEXT(WEEKDAY(DATE(CalendarYear,5,29),1),\"jjj\")","v":"mer"},{"$f":"TEXT(WEEKDAY(DATE(CalendarYear,5,30),1),\"jjj\")","v":"jeu"},{"$f":"TEXT(WEEKDAY(DATE(CalendarYear,5,31),1),\"jjj\")","v":"ven"}]
[null,"Nom de l’employé","1","2","3","4","5","6","7","8","9","10","11","12","13","14","15","16","17","18","19","20","21","22","23","24","25","26","27","28","29","30","31","Total des jours"]
[null,"Laure PALACIN",null,null,null,null,null,null,null,null,null,null,null,null,null,null,null,null,null,null,null,null,null,null,null,null,null,null,null,null,null,null,null,{"$f":"COUNTA(March58[[#This Row],[1]:[31]])","v":0}]
[null,null,null,null,null,null,null,null,null,null,null,null,null,null,null,null,null,null,null,null,null,null,null,null,null,null,null,null,null,null,null,null,null,{"$f":"COUNTA(March58[[#This Row],[1]:[31]])","v":0}]
[null,"Sandrine CAFAFA",null,null,null,null,null,null,null,null,null,null,null,null,null,null,null,null,null,null,null,null,null,null,null,null,null,null,null,null,null,null,null,{"$f":"COUNTA(March58[[#This Row],[1]:[31]])","v":0}]
[null,null,null,null,null,null,null,"ESE",null,null,null,null,null,null,null,null,null,null,null,null,null,null,null,null,null,null,null,null,null,null,null,null,null,{"$f":"COUNTA(March58[[#This Row],[1]:[31]])","v":1}]
[null,"Anifa BOUKHRISS",null,null,null,null,null,null,null,null,null,null,null,null,null,null,null,null,null,null,null,null,null,null,null,null,null,null,null,null,null,null,null,{"$f":"COUNTA(March58[[#This Row],[1]:[31]])","v":0}]
[null,null,null,null,null,null,null,null,null,null,null,null,null,null,null,null,null,null,null,null,null,null,null,null,null,null,null,null,null,null,null,null,null,{"$f":"COUNTA(March58[[#This Row],[1]:[31]])","v":0}]
[null,"Valérie BONVEL",null,null,null,null,null,null,null,null,null,null,null,null,null,null,null,null,null,null,null,null,null,null,null,null,null,null,null,null,null,null,null,{"$f":"COUNTA(March58[[#This Row],[1]:[31]])","v":0}]
[null,null,null,null,null,null,null,null,null,null,null,null,null,null,null,null,null,null,null,null,null,null,null,null,null,null,null,null,null,null,null,null,null,{"$f":"COUNTA(March58[[#This Row],[1]:[31]])","v":0}]
[null,"Alexandre KIOSSES",null,null,null,null,null,null,null,null,null,null,null,null,null,null,null,null,null,null,null,null,null,null,null,null,null,null,null,null,null,null,null,{"$f":"COUNTA(March58[[#This Row],[1]:[31]])","v":0}]
[null,null,null,null,null,null,null,null,null,null,null,null,null,null,null,null,null,null,null,null,null,null,null,null,null,null,null,null,null,null,null,null,null,{"$f":"COUNTA(March58[[#This Row],[1]:[31]])","v":0}]
[null,"Isabelle SANTERRE",null,null,null,null,null,null,null,null,null,null,null,null,null,null,null,null,null,null,null,null,null,null,null,null,null,null,null,null,null,null,null,{"$f":"COUNTA(March58[[#This Row],[1]:[31]])","v":0}]
[null,null,null,null,null,null,null,null,null,null,null,null,null,null,null,null,null,null,null,null,null,null,null,null,null,null,null,null,null,null,null,null,null,{"$f":"COUNTA(March58[[#This Row],[1]:[31]])","v":0}]
[null,"Madeline VENTURA",null,null,null,null,null,null,null,null,null,null,null,null,null,null,null,null,null,null,null,null,null,null,null,null,null,null,null,null,null,null,null,{"$f":"COUNTA(March58[[#This Row],[1]:[31]])","v":0}]
[null,null,null,null,null,null,null,null,null,null,null,null,null,null,null,null,null,null,null,null,null,null,null,null,null,null,null,null,null,null,null,null,null,{"$f":"COUNTA(March58[[#This Row],[1]:[31]])","v":0}]
[null,"Hamida MAHI",null,null,null,null,null,null,null,null,null,null,null,null,null,null,null,null,null,null,null,null,null,null,null,null,null,null,null,null,null,null,null,{"$f":"COUNTA(March58[[#This Row],[1]:[31]])","v":0}]
[null,null,null,null,null,null,null,null,null,null,null,null,null,null,null,null,null,null,null,null,null,null,null,null,null,null,null,null,null,null,null,null,null,{"$f":"COUNTA(March58[[#This Row],[1]:[31]])","v":0}]
[null,"Isabelle GIESECKE",null,null,null,null,null,null,null,null,null,null,null,null,null,null,null,null,null,null,null,null,null,null,null,null,null,null,null,null,null,null,null,{"$f":"COUNTA(March58[[#This Row],[1]:[31]])","v":0}]
[null,null,null,null,null,null,null,null,null,null,null,null,null,null,null,null,null,null,null,null,null,null,null,null,null,null,null,null,null,null,null,null,null,{"$f":"COUNTA(March58[[#This Row],[1]:[31]])","v":0}]
[null,"Sandrine POIRSOIN",null,null,null,null,null,null,null,null,null,null,null,null,null,null,null,null,null,null,null,null,null,null,null,null,null,null,null,null,null,null,null,{"$f":"COUNTA(March58[[#This Row],[1]:[31]])","v":0}]
[null,null,null,null,null,null,null,null,null,null,null,null,null,null,null,null,null,null,null,null,null,null,null,null,null,null,null,null,null,null,null,null,null,{"$f":"COUNTA(March58[[#This Row],[1]:[31]])","v":0}]
[null,"Florence MASSIE",null,null,null,null,null,null,null,null,null,null,null,null,null,null,null,null,null,null,null,null,null,null,null,null,null,null,null,null,null,null,null,{"$f":"COUNTA(March58[[#This Row],[1]:[31]])","v":0}]
[null,null,null,null,null,null,null,null,null,null,null,null,null,null,null,null,null,null,null,null,null,null,null,null,null,null,null,null,null,null,null,null,null,{"$f":"COUNTA(March58[[#This Row],[1]:[31]])","v":0}]
[null,"Rym ARAB",null,null,null,null,null,null,null,null,null,null,null,null,null,null,null,null,null,null,null,null,null,null,null,null,null,null,null,null,null,null,null,{"$f":"COUNTA(March58[[#This Row],[1]:[31]])","v":0}]
[null,null,null,null,null,null,null,null,null,null,null,null,null,null,null,null,null,null,null,null,null,null,null,null,null,null,null,null,null,null,null,null,null,{"$f":"COUNTA(March58[[#This Row],[1]:[31]])","v":0}]
[null,"Benoit DUPRE",null,null,null,null,null,null,null,null,null,null,null,null,null,null,null,null,null,null,null,null,null,null,null,null,null,null,null,null,null,null,null,{"$f":"COUNTA(March58[[#This Row],[1]:[31]])","v":0}]
[null,null,null,null,null,null,null,null,null,null,null,null,null,null,null,null,null,null,null,null,null,null,null,null,null,null,null,null,null,null,null,null,null,{"$f":"COUNTA(March58[[#This Row],[1]:[31]])","v":0}]
[null,"Bénédicte REBAGLIATO",null,null,null,null,null,null,null,null,null,null,null,null,null,null,null,null,null,null,null,null,null,null,null,null,null,null,null,null,null,null,null,{"$f":"COUNTA(March58[[#This Row],[1]:[31]])","v":0}]
[null,null,null,null,null,null,null,null,null,null,null,null,null,null,null,null,null,null,null,null,null,null,null,null,null,null,null,null,null,null,null,null,null,{"$f":"COUNTA(March58[[#This Row],[1]:[31]])","v":0}]
[null,"Eliott ARNOLD",null,null,null,null,null,null,null,null,null,null,null,null,null,null,null,null,null,null,null,null,null,null,null,null,null,null,null,null,null,null,null,{"$f":"COUNTA(March58[[#This Row],[1]:[31]])","v":0}]
[null,null,null,null,null,null,null,null,null,null,null,null,null,null,null,null,null,null,null,null,null,null,null,null,null,null,null,null,null,null,null,null,null,{"$f":"COUNTA(March58[[#This Row],[1]:[31]])","v":0}]
[null,"Vincent DEBENNE",null,null,null,null,null,null,null,null,null,null,null,null,null,null,null,null,null,null,null,null,null,null,null,null,null,null,null,null,null,null,null,{"$f":"COUNTA(March58[[#This Row],[1]:[31]])","v":0}]
[null,null,null,null,null,null,null,null,null,null,null,null,null,null,null,null,null,null,null,null,null,null,null,null,null,null,null,null,null,null,null,null,null,{"$f":"COUNTA(March58[[#This Row],[1]:[31]])","v":0}]
[null,"Céline GEOFFROY",null,null,null,null,null,null,null,null,null,null,null,null,null,null,null,null,null,null,null,null,null,null,null,null,null,null,null,null,null,null,null,{"$f":"COUNTA(March58[[#This Row],[1]:[31]])","v":0}]
[null,null,null,null,null,null,null,null,null,null,null,null,null,null,null,null,null,null,null,null,null,null,null,null,null,null,null,null,null,null,null,null,null,{"$f":"COUNTA(March58[[#This Row],[1]:[31]])","v":0}]
[null,null,null,null,null,null,null,null,null,null,null,null,null,null,null,null,null,null,null,null,null,null,null,null,null,null,null,null,null,null,null,null,null,{"$f":"COUNTA(March58[[#This Row],[1]:[31]])","v":0}]
[null,null,null,null,null,null,null,null,null,null,null,null,null,null,null,null,null,null,null,null,null,null,null,null,null,null,null,null,null,null,null,null,null,{"$f":"COUNTA(March58[[#This Row],[1]:[31]])","v":0}]
[null,null,null,null,null,null,null,null,null,null,null,null,null,null,null,null,null,null,null,null,null,null,null,null,null,null,null,null,null,null,null,null,null,{"$f":"COUNTA(March58[[#This Row],[1]:[31]])","v":0}]
[null,null,null,null,null,null,null,null,null,null,null,null,null,null,null,null,null,null,null,null,null,null,null,null,null,null,null,null,null,null,null,null,null,{"$f":"COUNTA(March58[[#This Row],[1]:[31]])","v":0}]
[null,null,null,null,null,null,null,null,null,null,null,null,null,null,null,null,null,null,null,null,null,null,null,null,null,null,null,null,null,null,null,null,null,{"$f":"COUNTA(March58[[#This Row],[1]:[31]])","v":0}]
[null,null,null,null,null,null,null,null,null,null,null,null,null,null,null,null,null,null,null,null,null,null,null,null,null,null,null,null,null,null,null,null,null,{"$f":"COUNTA(March58[[#This Row],[1]:[31]])","v":0}]
[null,null,null,null,null,null,null,null,null,null,null,null,null,null,null,null,null,null,null,null,null,null,null,null,null,null,null,null,null,null,null,null,null,{"$f":"COUNTA(March58[[#This Row],[1]:[31]])","v":0}]
[null,null,null,null,null,null,null,null,null,null,null,null,null,null,null,null,null,null,null,null,null,null,null,null,null,null,null,null,null,null,null,null,null,{"$f":"COUNTA(March58[[#This Row],[1]:[31]])","v":0}]
[null,null,null,null,null,null,null,null,null,null,null,null,null,null,null,null,null,null,null,null,null,null,null,null,null,null,null,null,null,null,null,null,null,{"$f":"COUNTA(March58[[#This Row],[1]:[31]])","v":0}]
[null,null,null,null,null,null,null,null,null,null,null,null,null,null,null,null,null,null,null,null,null,null,null,null,null,null,null,null,null,null,null,null,null,{"$f":"COUNTA(March58[[#This Row],[1]:[31]])","v":0}]
[null,{"$f":"NomMois&\" Total\"","v":"Clé de motif d’absence Total"},{"$f":"SUBTOTAL(103,March58[1])","v":0},{"$f":"SUBTOTAL(103,March58[2])","v":0},{"$f":"SUBTOTAL(103,March58[3])","v":0},{"$f":"SUBTOTAL(103,March58[4])","v":0},{"$f":"SUBTOTAL(103,March58[5])","v":0},{"$f":"SUBTOTAL(103,March58[6])","v":1},{"$f":"SUBTOTAL(103,March58[7])","v":0},{"$f":"SUBTOTAL(103,March58[8])","v":0},{"$f":"SUBTOTAL(103,March58[9])","v":0},{"$f":"SUBTOTAL(103,March58[10])","v":0},{"$f":"SUBTOTAL(103,March58[11])","v":0},{"$f":"SUBTOTAL(103,March58[12])","v":0},{"$f":"SUBTOTAL(103,March58[13])","v":0},{"$f":"SUBTOTAL(103,March58[14])","v":0},{"$f":"SUBTOTAL(103,March58[15])","v":0},{"$f":"SUBTOTAL(103,March58[16])","v":0},{"$f":"SUBTOTAL(103,March58[17])","v":0},{"$f":"SUBTOTAL(103,March58[18])","v":0},{"$f":"SUBTOTAL(103,March58[19])","v":0},{"$f":"SUBTOTAL(103,March58[20])","v":0},{"$f":"SUBTOTAL(103,March58[21])","v":0},{"$f":"SUBTOTAL(103,March58[22])","v":0},{"$f":"SUBTOTAL(103,March58[23])","v":0},{"$f":"SUBTOTAL(103,March58[24])","v":0},{"$f":"SUBTOTAL(103,March58[25])","v":0},{"$f":"SUBTOTAL(103,March58[26])","v":0},{"$f":"SUBTOTAL(103,March58[27])","v":0},{"$f":"SUBTOTAL(103,March58[28])","v":0},{"$f":"SUBTOTAL(103,March58[29])","v":0},{"$f":"SUBTOTAL(109,March58[30])","v":0},{"$f":"SUBTOTAL(109,March58[31])","v":0},{"$f":"SUBTOTAL(109,March58[Total des jours])","v":1}]

{"sheet":"Juin","index":5,"n_rows":53,"n_cols":34,"rows_kept":53,"cut":false,"hidden":false,"merged":[[5,2,5,32]]}
[null,"Calendrier des absences des employés"]
[null,"Juin"]
[]
[null,"Clé de motif d’absence","C","Congé",null,"P","Privé","M","Maladie","T","Test","ESE","Entretien ",null,"R","Réunion",null,"TT","Télétravail",null,"F","Forum",null,"TT"]
[]
[null,null,"Dates d’absence",null,null,null,null,null,null,null,null,null,null,null,null,null,null,null,null,null,null,null,null,null,null,null,null,null,null,null,null,null,null,2024]
[null,null,{"$f":"TEXT(WEEKDAY(DATE(CalendarYear,6,1),1),\"jjj\")","v":"sam"},{"$f":"TEXT(WEEKDAY(DATE(CalendarYear,6,2),1),\"jjj\")","v":"dim"},{"$f":"TEXT(WEEKDAY(DATE(CalendarYear,6,3),1),\"jjj\")","v":"lun"},{"$f":"TEXT(WEEKDAY(DATE(CalendarYear,6,4),1),\"jjj\")","v":"mar"},{"$f":"TEXT(WEEKDAY(DATE(CalendarYear,6,5),1),\"jjj\")","v":"mer"},{"$f":"TEXT(WEEKDAY(DATE(CalendarYear,6,6),1),\"jjj\")","v":"jeu"},{"$f":"TEXT(WEEKDAY(DATE(CalendarYear,6,7),1),\"jjj\")","v":"ven"},{"$f":"TEXT(WEEKDAY(DATE(CalendarYear,6,8),1),\"jjj\")","v":"sam"},{"$f":"TEXT(WEEKDAY(DATE(CalendarYear,6,9),1),\"jjj\")","v":"dim"},{"$f":"TEXT(WEEKDAY(DATE(CalendarYear,6,10),1),\"jjj\")","v":"lun"},{"$f":"TEXT(WEEKDAY(DATE(CalendarYear,6,11),1),\"jjj\")","v":"mar"},{"$f":"TEXT(WEEKDAY(DATE(CalendarYear,6,12),1),\"jjj\")","v":"mer"},{"$f":"TEXT(WEEKDAY(DATE(CalendarYear,6,13),1),\"jjj\")","v":"jeu"},{"$f":"TEXT(WEEKDAY(DATE(CalendarYear,6,14),1),\"jjj\")","v":"ven"},{"$f":"TEXT(WEEKDAY(DATE(CalendarYear,6,15),1),\"jjj\")","v":"sam"},{"$f":"TEXT(WEEKDAY(DATE(CalendarYear,6,16),1),\"jjj\")","v":"dim"},{"$f":"TEXT(WEEKDAY(DATE(CalendarYear,6,17),1),\"jjj\")","v":"lun"},{"$f":"TEXT(WEEKDAY(DATE(CalendarYear,6,18),1),\"jjj\")","v":"mar"},{"$f":"TEXT(WEEKDAY(DATE(CalendarYear,6,19),1),\"jjj\")","v":"mer"},{"$f":"TEXT(WEEKDAY(DATE(CalendarYear,6,20),1),\"jjj\")","v":"jeu"},{"$f":"TEXT(WEEKDAY(DATE(CalendarYear,6,21),1),\"jjj\")","v":"ven"},{"$f":"TEXT(WEEKDAY(DATE(CalendarYear,6,22),1),\"jjj\")","v":"sam"},{"$f":"TEXT(WEEKDAY(DATE(CalendarYear,6,23),1),\"jjj\")","v":"dim"},{"$f":"TEXT(WEEKDAY(DATE(CalendarYear,6,24),1),\"jjj\")","v":"lun"},{"$f":"TEXT(WEEKDAY(DATE(CalendarYear,6,25),1),\"jjj\")","v":"mar"},{"$f":"TEXT(WEEKDAY(DATE(CalendarYear,6,26),1),\"jjj\")","v":"mer"},{"$f":"TEXT(WEEKDAY(DATE(CalendarYear,6,27),1),\"jjj\")","v":"jeu"},{"$f":"TEXT(WEEKDAY(DATE(CalendarYear,6,28),1),\"jjj\")","v":"ven"},{"$f":"TEXT(WEEKDAY(DATE(CalendarYear,6,29),1),\"jjj\")","v":"sam"},{"$f":"TEXT(WEEKDAY(DATE(CalendarYear,6,30),1),\"jjj\")","v":"dim"}]
[null,"Nom de l’employé","1","2","3","4","5","6","7","8","9","10","11","12","13","14","15","16","17","18","19","20","21","22","23","24","25","26","27","28","29","30"," ","Total des jours"]
[null,"Laure PALACIN",null,null,null,null,null,null,null,null,null,null,null,null,null,null,null,null,null,null,null,null,null,null,null,null,null,null,null,null,null,null,null,{"$f":"COUNTA(Juin[[#This Row],[1]:[ ]])","v":0}]
[null,null,null,null,null,null,null,null,null,null,null,null,null,null,null,null,null,null,null,null,null,null,null,null,null,null,null,null,null,null,null,null,null,{"$f":"COUNTA(Juin[[#This Row],[1]:[ ]])","v":0}]
[null,"Sandrine CAFAFA",null,null,null,null,null,null,null,null,null,null,null,null,null,null,null,null,null,null,null,null,null,null,null,null,null,null,null,null,null,null,null,{"$f":"COUNTA(Juin[[#This Row],[1]:[ ]])","v":0}]
[null,null,null,null,null,null,null,null,null,null,null,null,null,null,null,null,null,null,null,null,null,null,null,null,null,null,null,null,null,null,null,null,null,{"$f":"COUNTA(Juin[[#This Row],[1]:[ ]])","v":0}]
[null,"Anifa BOUKHRISS",null,null,null,null,null,null,null,null,null,null,null,null,null,null,null,null,null,null,null,null,null,null,null,null,null,null,null,null,null,null,null,{"$f":"COUNTA(Juin[[#This Row],[1]:[ ]])","v":0}]
[null,null,null,null,null,null,null,null,null,null,null,null,null,null,null,null,null,null,null,null,null,null,null,null,null,null,null,null,null,null,null,null,null,{"$f":"COUNTA(Juin[[#This Row],[1]:[ ]])","v":0}]
[null,"Valérie BONVEL",null,null,null,null,null,null,null,null,null,null,null,null,null,null,null,null,null,null,null,null,null,null,null,null,null,null,null,null,null,null,null,{"$f":"COUNTA(Juin[[#This Row],[1]:[ ]])","v":0}]
[null,null,null,null,null,null,null,null,null,null,null,null,null,null,null,null,null,null,null,null,null,null,null,null,null,null,null,null,null,null,null,null,null,{"$f":"COUNTA(Juin[[#This Row],[1]:[ ]])","v":0}]
[null,"Alexandre KIOSSES",null,null,null,null,null,null,null,null,null,null,null,null,null,null,null,null,null,null,null,null,null,null,null,null,null,null,null,null,null,null,null,{"$f":"COUNTA(Juin[[#This Row],[1]:[ ]])","v":0}]
[null,null,null,null,null,null,null,null,null,null,null,null,null,null,null,null,null,null,null,null,null,null,null,null,null,null,null,null,null,null,null,null,null,{"$f":"COUNTA(Juin[[#This Row],[1]:[ ]])","v":0}]
[null,"Isabelle SANTERRE",null,null,null,null,null,null,null,null,null,null,null,null,null,null,null,null,null,null,null,null,null,null,null,null,null,null,null,null,null,null,null,{"$f":"COUNTA(Juin[[#This Row],[1]:[ ]])","v":0}]
[null,null,null,null,null,null,null,null,null,null,null,null,null,null,null,null,null,null,null,null,null,null,null,null,null,null,null,null,null,null,null,null,null,{"$f":"COUNTA(Juin[[#This Row],[1]:[ ]])","v":0}]
[null,"Madeline VENTURA",null,null,null,null,null,null,null,null,null,null,null,null,null,null,null,null,null,null,null,null,null,null,null,null,null,null,null,null,null,null,null,{"$f":"COUNTA(Juin[[#This Row],[1]:[ ]])","v":0}]
[null,null,null,null,null,null,null,null,null,null,null,null,null,null,null,null,null,null,null,null,null,null,null,null,null,null,null,null,null,null,null,null,null,{"$f":"COUNTA(Juin[[#This Row],[1]:[ ]])","v":0}]
[null,"Hamida MAHI",null,null,null,null,null,null,null,null,null,null,null,null,null,null,null,null,null,null,null,null,null,null,null,null,null,null,null,null,null,null,null,{"$f":"COUNTA(Juin[[#This Row],[1]:[ ]])","v":0}]
[null,null,null,null,null,null,null,null,null,null,null,null,null,null,null,null,null,null,null,null,null,null,null,null,null,null,null,null,null,null,null,null,null,{"$f":"COUNTA(Juin[[#This Row],[1]:[ ]])","v":0}]
[null,"Isabelle GIESECKE",null,null,null,null,null,null,null,null,null,null,null,null,null,null,null,null,null,null,null,null,null,null,null,null,null,null,null,null,null,null,null,{"$f":"COUNTA(Juin[[#This Row],[1]:[ ]])","v":0}]
[null,null,null,null,null,null,null,null,null,null,null,null,null,null,null,null,null,null,null,null,null,null,null,null,null,null,null,null,null,null,null,null,null,{"$f":"COUNTA(Juin[[#This Row],[1]:[ ]])","v":0}]
[null,"Sandrine POIRSOIN",null,null,null,null,null,null,null,null,null,null,null,null,null,null,null,null,null,null,null,null,null,null,null,null,null,null,null,null,null,null,null,{"$f":"COUNTA(Juin[[#This Row],[1]:[ ]])","v":0}]
[null,null,null,null,null,null,null,null,null,null,null,null,null,null,null,null,null,null,null,null,null,null,null,null,null,null,null,null,null,null,null,null,null,{"$f":"COUNTA(Juin[[#This Row],[1]:[ ]])","v":0}]
[null,"Florence MASSIE",null,null,null,null,null,null,null,null,null,null,null,null,null,null,null,null,null,null,null,null,null,null,null,null,null,null,null,null,null,null,null,{"$f":"COUNTA(Juin[[#This Row],[1]:[ ]])","v":0}]
[null,null,null,null,null,null,null,null,null,null,null,null,null,null,null,null,null,null,null,null,null,null,null,null,null,null,null,null,null,null,null,null,null,{"$f":"COUNTA(Juin[[#This Row],[1]:[ ]])","v":0}]
[null,"Rym ARAB",null,null,null,null,null,null,null,null,null,null,null,null,null,null,null,null,null,null,null,null,null,null,null,null,null,null,null,null,null,null,null,{"$f":"COUNTA(Juin[[#This Row],[1]:[ ]])","v":0}]
[null,null,null,null,null,null,null,null,null,null,null,null,null,null,null,null,null,null,null,null,null,null,null,null,null,null,null,null,null,null,null,null,null,{"$f":"COUNTA(Juin[[#This Row],[1]:[ ]])","v":0}]
[null,"Benoit DUPRE",null,null,null,null,null,null,null,null,null,null,null,null,null,null,null,null,null,null,null,null,null,null,null,null,null,null,null,null,null,null,null,{"$f":"COUNTA(Juin[[#This Row],[1]:[ ]])","v":0}]
[null,null,null,null,null,null,null,null,null,null,null,null,null,null,null,null,null,null,null,null,null,null,null,null,null,null,null,null,null,null,null,null,null,{"$f":"COUNTA(Juin[[#This Row],[1]:[ ]])","v":0}]
[null,"Bénédicte REBAGLIATO",null,null,null,null,null,null,null,null,null,null,null,null,null,null,null,null,null,null,null,null,null,null,null,null,null,null,null,null,null,null,null,{"$f":"COUNTA(Juin[[#This Row],[1]:[ ]])","v":0}]
[null,null,null,null,null,null,null,null,null,null,null,null,null,null,null,null,null,null,null,null,null,null,null,null,null,null,null,null,null,null,null,null,null,{"$f":"COUNTA(Juin[[#This Row],[1]:[ ]])","v":0}]
[null,"Eliott ARNOLD",null,null,null,null,null,null,null,null,null,null,null,null,null,null,null,null,null,null,null,null,null,null,null,null,null,null,null,null,null,null,null,{"$f":"COUNTA(Juin[[#This Row],[1]:[ ]])","v":0}]
[null,null,null,null,null,null,null,null,null,null,null,null,null,null,null,null,null,null,null,null,null,null,null,null,null,null,null,null,null,null,null,null,null,{"$f":"COUNTA(Juin[[#This Row],[1]:[ ]])","v":0}]
[null,"Vincent DEBENNE",null,null,null,null,null,null,null,null,null,null,null,null,null,null,null,null,null,null,null,null,null,null,null,null,null,null,null,null,null,null,null,{"$f":"COUNTA(Juin[[#This Row],[1]:[ ]])","v":0}]
[null,null,null,null,null,null,null,null,null,null,null,null,null,null,null,null,null,null,null,null,null,null,null,null,null,null,null,null,null,null,null,null,null,{"$f":"COUNTA(Juin[[#This Row],[1]:[ ]])","v":0}]
[null,"Céline GEOFFROY",null,null,null,null,null,null,null,null,null,null,null,null,null,null,null,null,null,null,null,null,null,null,null,null,null,null,null,null,null,null,null,{"$f":"COUNTA(Juin[[#This Row],[1]:[ ]])","v":0}]
[null,null,null,null,null,null,null,null,null,null,null,null,null,null,null,null,null,null,null,null,null,null,null,null,null,null,null,null,null,null,null,null,null,{"$f":"COUNTA(Juin[[#This Row],[1]:[ ]])","v":0}]
[null,null,null,null,null,null,null,null,null,null,null,null,null,null,null,null,null,null,null,null,null,null,null,null,null,null,null,null,null,null,null,null,null,{"$f":"COUNTA(Juin[[#This Row],[1]:[ ]])","v":0}]
[null,null,null,null,null,null,null,null,null,null,null,null,null,null,null,null,null,null,null,null,null,null,null,null,null,null,null,null,null,null,null,null,null,{"$f":"COUNTA(Juin[[#This Row],[1]:[ ]])","v":0}]
[null,null,null,null,null,null,null,null,null,null,null,null,null,null,null,null,null,null,null,null,null,null,null,null,null,null,null,null,null,null,null,null,null,{"$f":"COUNTA(Juin[[#This Row],[1]:[ ]])","v":0}]
[null,null,null,null,null,null,null,null,null,null,null,null,null,null,null,null,null,null,null,null,null,null,null,null,null,null,null,null,null,null,null,null,null,{"$f":"COUNTA(Juin[[#This Row],[1]:[ ]])","v":0}]
[null,null,null,null,null,null,null,null,null,null,null,null,null,null,null,null,null,null,null,null,null,null,null,null,null,null,null,null,null,null,null,null,null,{"$f":"COUNTA(Juin[[#This Row],[1]:[ ]])","v":0}]
[null,null,null,null,null,null,null,null,null,null,null,null,null,null,null,null,null,null,null,null,null,null,null,null,null,null,null,null,null,null,null,null,null,{"$f":"COUNTA(Juin[[#This Row],[1]:[ ]])","v":0}]
[null,null,null,null,null,null,null,null,null,null,null,null,null,null,null,null,null,null,null,null,null,null,null,null,null,null,null,null,null,null,null,null,null,{"$f":"COUNTA(Juin[[#This Row],[1]:[ ]])","v":0}]
[null,null,null,null,null,null,null,null,null,null,null,null,null,null,null,null,null,null,null,null,null,null,null,null,null,null,null,null,null,null,null,null,null,{"$f":"COUNTA(Juin[[#This Row],[1]:[ ]])","v":0}]
[null,null,null,null,null,null,null,null,null,null,null,null,null,null,null,null,null,null,null,null,null,null,null,null,null,null,null,null,null,null,null,null,null,{"$f":"COUNTA(Juin[[#This Row],[1]:[ ]])","v":0}]
[null,null,null,null,null,null,null,null,null,null,null,null,null,null,null,null,null,null,null,null,null,null,null,null,null,null,null,null,null,null,null,null,null,{"$f":"COUNTA(Juin[[#This Row],[1]:[ ]])","v":0}]
[null,{"$f":"NomMois&\" Total\"","v":"Juin Total"},{"$f":"SUBTOTAL(103,Juin[1])","v":0},{"$f":"SUBTOTAL(103,Juin[2])","v":0},{"$f":"SUBTOTAL(103,Juin[3])","v":0},{"$f":"SUBTOTAL(103,Juin[4])","v":0},{"$f":"SUBTOTAL(103,Juin[5])","v":0},{"$f":"SUBTOTAL(103,Juin[6])","v":0},{"$f":"SUBTOTAL(103,Juin[7])","v":0},{"$f":"SUBTOTAL(103,Juin[8])","v":0},{"$f":"SUBTOTAL(103,Juin[9])","v":0},{"$f":"SUBTOTAL(103,Juin[10])","v":0},{"$f":"SUBTOTAL(103,Juin[11])","v":0},{"$f":"SUBTOTAL(103,Juin[12])","v":0},{"$f":"SUBTOTAL(103,Juin[13])","v":0},{"$f":"SUBTOTAL(103,Juin[14])","v":0},{"$f":"SUBTOTAL(103,Juin[15])","v":0},{"$f":"SUBTOTAL(103,Juin[16])","v":0},{"$f":"SUBTOTAL(103,Juin[17])","v":0},{"$f":"SUBTOTAL(103,Juin[18])","v":0},{"$f":"SUBTOTAL(103,Juin[19])","v":0},{"$f":"SUBTOTAL(103,Juin[20])","v":0},{"$f":"SUBTOTAL(103,Juin[21])","v":0},{"$f":"SUBTOTAL(103,Juin[22])","v":0},{"$f":"SUBTOTAL(103,Juin[23])","v":0},{"$f":"SUBTOTAL(103,Juin[24])","v":0},{"$f":"SUBTOTAL(103,Juin[25])","v":0},{"$f":"SUBTOTAL(103,Juin[26])","v":0},{"$f":"SUBTOTAL(103,Juin[27])","v":0},{"$f":"SUBTOTAL(103,Juin[28])","v":0},{"$f":"SUBTOTAL(103,Juin[29])","v":0},{"$f":"SUBTOTAL(109,Juin[30])","v":0},{"$f":"SUBTOTAL(109,Juin[[ ]])","v":0},{"$f":"SUBTOTAL(109,Juin[Total des jours])","v":0}]

{"sheet":"Juillet","index":6,"n_rows":53,"n_cols":34,"rows_kept":53,"cut":false,"hidden":false,"merged":[[5,2,5,32]]}
[null,"Calendrier des absences des employés"]
[null,"Juillet"]
[]
[null,"Clé de motif d’absence","C","Congé",null,"P","Privé","M","Maladie","T","Test","ESE","Entretien ",null,"R","Réunion",null,"TT","Télétravail",null,"F","Forum",null,"TT"]
[]
[null,null,"Dates d’absence",null,null,null,null,null,null,null,null,null,null,null,null,null,null,null,null,null,null,null,null,null,null,null,null,null,null,null,null,null,null,{"$f":"CalendarYear","v":2024}]
[null,null,{"$f":"TEXT(WEEKDAY(DATE(CalendarYear,7,1),1),\"jjj\")","v":"lun"},{"$f":"TEXT(WEEKDAY(DATE(CalendarYear,7,2),1),\"jjj\")","v":"mar"},{"$f":"TEXT(WEEKDAY(DATE(CalendarYear,7,3),1),\"jjj\")","v":"mer"},{"$f":"TEXT(WEEKDAY(DATE(CalendarYear,7,4),1),\"jjj\")","v":"jeu"},{"$f":"TEXT(WEEKDAY(DATE(CalendarYear,7,5),1),\"jjj\")","v":"ven"},{"$f":"TEXT(WEEKDAY(DATE(CalendarYear,7,6),1),\"jjj\")","v":"sam"},{"$f":"TEXT(WEEKDAY(DATE(CalendarYear,7,7),1),\"jjj\")","v":"dim"},{"$f":"TEXT(WEEKDAY(DATE(CalendarYear,7,8),1),\"jjj\")","v":"lun"},{"$f":"TEXT(WEEKDAY(DATE(CalendarYear,7,9),1),\"jjj\")","v":"mar"},{"$f":"TEXT(WEEKDAY(DATE(CalendarYear,7,10),1),\"jjj\")","v":"mer"},{"$f":"TEXT(WEEKDAY(DATE(CalendarYear,7,11),1),\"jjj\")","v":"jeu"},{"$f":"TEXT(WEEKDAY(DATE(CalendarYear,7,12),1),\"jjj\")","v":"ven"},{"$f":"TEXT(WEEKDAY(DATE(CalendarYear,7,13),1),\"jjj\")","v":"sam"},{"$f":"TEXT(WEEKDAY(DATE(CalendarYear,7,14),1),\"jjj\")","v":"dim"},{"$f":"TEXT(WEEKDAY(DATE(CalendarYear,7,15),1),\"jjj\")","v":"lun"},{"$f":"TEXT(WEEKDAY(DATE(CalendarYear,7,16),1),\"jjj\")","v":"mar"},{"$f":"TEXT(WEEKDAY(DATE(CalendarYear,7,17),1),\"jjj\")","v":"mer"},{"$f":"TEXT(WEEKDAY(DATE(CalendarYear,7,18),1),\"jjj\")","v":"jeu"},{"$f":"TEXT(WEEKDAY(DATE(CalendarYear,7,19),1),\"jjj\")","v":"ven"},{"$f":"TEXT(WEEKDAY(DATE(CalendarYear,7,20),1),\"jjj\")","v":"sam"},{"$f":"TEXT(WEEKDAY(DATE(CalendarYear,7,21),1),\"jjj\")","v":"dim"},{"$f":"TEXT(WEEKDAY(DATE(CalendarYear,7,22),1),\"jjj\")","v":"lun"},{"$f":"TEXT(WEEKDAY(DATE(CalendarYear,7,23),1),\"jjj\")","v":"mar"},{"$f":"TEXT(WEEKDAY(DATE(CalendarYear,7,24),1),\"jjj\")","v":"mer"},{"$f":"TEXT(WEEKDAY(DATE(CalendarYear,7,25),1),\"jjj\")","v":"jeu"},{"$f":"TEXT(WEEKDAY(DATE(CalendarYear,7,26),1),\"jjj\")","v":"ven"},{"$f":"TEXT(WEEKDAY(DATE(CalendarYear,7,27),1),\"jjj\")","v":"sam"},{"$f":"TEXT(WEEKDAY(DATE(CalendarYear,7,28),1),\"jjj\")","v":"dim"},{"$f":"TEXT(WEEKDAY(DATE(CalendarYear,7,29),1),\"jjj\")","v":"lun"},{"$f":"TEXT(WEEKDAY(DATE(CalendarYear,7,30),1),\"jjj\")","v":"mar"},{"$f":"TEXT(WEEKDAY(DATE(CalendarYear,7,31),1),\"jjj\")","v":"mer"}]
[null,"Nom de l’employé","1","2","3","4","5","6","7","8","9","10","11","12","13","14","15","16","17","18","19","20","21","22","23","24","25","26","27","28","29","30","31","Total des jours"]
[null,"Laure PALACIN",null,null,null,null,null,null,null,null,null,null,null,null,null,null,null,null,null,null,null,null,null,null,null,null,null,null,null,null,null,null,null,{"$f":"COUNTA(Juillet[[#This Row],[1]:[31]])","v":0}]
[null,null,null,null,null,null,null,null,null,null,null,null,null,null,null,null,null,null,null,null,null,null,null,null,null,null,null,null,null,null,null,null,null,{"$f":"COUNTA(Juillet[[#This Row],[1]:[31]])","v":0}]
[null,"Sandrine CAFAFA",null,null,null,null,null,null,null,null,null,null,null,null,null,null,null,null,null,null,null,null,null,null,null,null,null,null,null,null,null,null,null,{"$f":"COUNTA(Juillet[[#This Row],[1]:[31]])","v":0}]
[null,null,null,null,null,null,null,null,null,null,null,null,null,null,null,null,null,null,null,null,null,null,null,null,null,null,null,null,null,null,null,null,null,{"$f":"COUNTA(Juillet[[#This Row],[1]:[31]])","v":0}]
[null,"Anifa BOUKHRISS",null,null,null,null,null,null,null,null,null,null,null,null,null,null,null,null,null,null,null,null,null,null,null,null,null,null,null,null,null,null,null,{"$f":"COUNTA(Juillet[[#This Row],[1]:[31]])","v":0}]
[null,null,null,null,null,null,null,null,null,null,null,null,null,null,null,null,null,null,null,null,null,null,null,null,null,null,null,null,null,null,null,null,null,{"$f":"COUNTA(Juillet[[#This Row],[1]:[31]])","v":0}]
[null,"Valérie BONVEL",null,null,null,null,null,null,null,null,null,null,null,null,null,null,null,null,null,null,null,null,null,null,null,null,null,null,null,null,null,null,null,{"$f":"COUNTA(Juillet[[#This Row],[1]:[31]])","v":0}]
[null,null,null,null,null,null,null,null,null,null,null,null,null,null,null,null,null,null,null,null,null,null,null,null,null,null,null,null,null,null,null,null,null,{"$f":"COUNTA(Juillet[[#This Row],[1]:[31]])","v":0}]
[null,"Alexandre KIOSSES",null,null,null,null,null,null,null,null,null,null,null,null,null,null,null,null,null,null,null,null,null,null,null,null,null,null,null,null,null,null,null,{"$f":"COUNTA(Juillet[[#This Row],[1]:[31]])","v":0}]
[null,null,null,null,null,null,null,null,null,null,null,null,null,null,null,null,null,null,null,null,null,null,null,null,null,null,null,null,null,null,null,null,null,{"$f":"COUNTA(Juillet[[#This Row],[1]:[31]])","v":0}]
[null,"Isabelle SANTERRE",null,null,null,null,null,null,null,null,null,null,null,null,null,null,null,null,null,null,null,null,null,null,null,null,null,null,null,null,null,null,null,{"$f":"COUNTA(Juillet[[#This Row],[1]:[31]])","v":0}]
[null,null,null,null,null,null,null,null,null,null,null,null,null,null,null,null,null,null,null,null,null,null,null,null,null,null,null,null,null,null,null,null,null,{"$f":"COUNTA(Juillet[[#This Row],[1]:[31]])","v":0}]
[null,"Madeline VENTURA",null,null,null,null,null,null,null,null,null,null,null,null,null,null,null,null,null,null,null,null,null,null,null,null,null,null,null,null,null,null,null,{"$f":"COUNTA(Juillet[[#This Row],[1]:[31]])","v":0}]
[null,null,null,null,null,null,null,null,null,null,null,null,null,null,null,null,null,null,null,null,null,null,null,null,null,null,null,null,null,null,null,null,null,{"$f":"COUNTA(Juillet[[#This Row],[1]:[31]])","v":0}]
[null,"Hamida MAHI",null,null,null,null,null,null,null,null,null,null,null,null,null,null,null,null,null,null,null,null,null,null,null,null,null,null,null,null,null,null,null,{"$f":"COUNTA(Juillet[[#This Row],[1]:[31]])","v":0}]
[null,null,null,null,null,null,null,null,null,null,null,null,null,null,null,null,null,null,null,null,null,null,null,null,null,null,null,null,null,null,null,null,null,{"$f":"COUNTA(Juillet[[#This Row],[1]:[31]])","v":0}]
[null,"Isabelle GIESECKE",null,null,null,null,null,null,null,null,null,null,null,null,null,null,null,null,null,null,null,null,null,null,null,null,null,null,null,null,null,null,null,{"$f":"COUNTA(Juillet[[#This Row],[1]:[31]])","v":0}]
[null,null,null,null,null,null,null,null,null,null,null,null,null,null,null,null,null,null,null,null,null,null,null,null,null,null,null,null,null,null,null,null,null,{"$f":"COUNTA(Juillet[[#This Row],[1]:[31]])","v":0}]
[null,"Sandrine POIRSOIN",null,null,null,null,null,null,null,null,null,null,null,null,null,null,null,null,null,null,null,null,null,null,null,null,null,null,null,null,null,null,null,{"$f":"COUNTA(Juillet[[#This Row],[1]:[31]])","v":0}]
[null,null,null,null,null,null,null,null,null,null,null,null,null,null,null,null,null,null,null,null,null,null,null,null,null,null,null,null,null,null,null,null,null,{"$f":"COUNTA(Juillet[[#This Row],[1]:[31]])","v":0}]
[null,"Florence MASSIE",null,null,null,null,null,null,null,null,null,null,null,null,null,null,null,null,null,null,null,null,null,null,null,null,null,null,null,null,null,null,null,{"$f":"COUNTA(Juillet[[#This Row],[1]:[31]])","v":0}]
[null,null,null,null,null,null,null,null,null,null,null,null,null,null,null,null,null,null,null,null,null,null,null,null,null,null,null,null,null,null,null,null,null,{"$f":"COUNTA(Juillet[[#This Row],[1]:[31]])","v":0}]
[null,"Rym ARAB",null,null,null,null,null,null,null,null,null,null,null,null,null,null,null,null,null,null,null,null,null,null,null,null,null,null,null,null,null,null,null,{"$f":"COUNTA(Juillet[[#This Row],[1]:[31]])","v":0}]
[null,null,null,null,null,null,null,null,null,null,null,null,null,null,null,null,null,null,null,null,null,null,null,null,null,null,null,null,null,null,null,null,null,{"$f":"COUNTA(Juillet[[#This Row],[1]:[31]])","v":0}]
[null,"Benoit DUPRE",null,null,null,null,null,null,null,null,null,null,null,null,null,null,null,null,null,null,null,null,null,null,null,null,null,null,null,null,null,null,null,{"$f":"COUNTA(Juillet[[#This Row],[1]:[31]])","v":0}]
[null,null,null,null,null,null,null,null,null,null,null,null,null,null,null,null,null,null,null,null,null,null,null,null,null,null,null,null,null,null,null,null,null,{"$f":"COUNTA(Juillet[[#This Row],[1]:[31]])","v":0}]
[null,"Bénédicte REBAGLIATO",null,null,null,null,null,null,null,null,null,null,null,null,null,null,null,null,null,null,null,null,null,null,null,null,null,null,null,null,null,null,null,{"$f":"COUNTA(Juillet[[#This Row],[1]:[31]])","v":0}]
[null,null,null,null,null,null,null,null,null,null,null,null,null,null,null,null,null,null,null,null,null,null,null,null,null,null,null,null,null,null,null,null,null,{"$f":"COUNTA(Juillet[[#This Row],[1]:[31]])","v":0}]
[null,"Eliott ARNOLD",null,null,null,null,null,null,null,null,null,null,null,null,null,null,null,null,null,null,null,null,null,null,null,null,null,null,null,null,null,null,null,{"$f":"COUNTA(Juillet[[#This Row],[1]:[31]])","v":0}]
[null,null,null,null,null,null,null,null,null,null,null,null,null,null,null,null,null,null,null,null,null,null,null,null,null,null,null,null,null,null,null,null,null,{"$f":"COUNTA(Juillet[[#This Row],[1]:[31]])","v":0}]
[null,"Vincent DEBENNE",null,null,null,null,null,null,null,null,null,null,null,null,null,null,null,null,null,null,null,null,null,null,null,null,null,null,null,null,null,null,null,{"$f":"COUNTA(Juillet[[#This Row],[1]:[31]])","v":0}]
[null,null,null,null,null,null,null,null,null,null,null,null,null,null,null,null,null,null,null,null,null,null,null,null,null,null,null,null,null,null,null,null,null,{"$f":"COUNTA(Juillet[[#This Row],[1]:[31]])","v":0}]
[null,"Céline GEOFFROY",null,null,null,null,null,null,null,null,null,null,null,null,null,null,null,null,null,null,null,null,null,null,null,null,null,null,null,null,null,null,null,{"$f":"COUNTA(Juillet[[#This Row],[1]:[31]])","v":0}]
[null,null,null,null,null,null,null,null,null,null,null,null,null,null,null,null,null,null,null,null,null,null,null,null,null,null,null,null,null,null,null,null,null,{"$f":"COUNTA(Juillet[[#This Row],[1]:[31]])","v":0}]
[null,null,null,null,null,null,null,null,null,null,null,null,null,null,null,null,null,null,null,null,null,null,null,null,null,null,null,null,null,null,null,null,null,{"$f":"COUNTA(Juillet[[#This Row],[1]:[31]])","v":0}]
[null,null,null,null,null,null,null,null,null,null,null,null,null,null,null,null,null,null,null,null,null,null,null,null,null,null,null,null,null,null,null,null,null,{"$f":"COUNTA(Juillet[[#This Row],[1]:[31]])","v":0}]
[null,null,null,null,null,null,null,null,null,null,null,null,null,null,null,null,null,null,null,null,null,null,null,null,null,null,null,null,null,null,null,null,null,{"$f":"COUNTA(Juillet[[#This Row],[1]:[31]])","v":0}]
[null,null,null,null,null,null,null,null,null,null,null,null,null,null,null,null,null,null,null,null,null,null,null,null,null,null,null,null,null,null,null,null,null,{"$f":"COUNTA(Juillet[[#This Row],[1]:[31]])","v":0}]
[null,null,null,null,null,null,null,null,null,null,null,null,null,null,null,null,null,null,null,null,null,null,null,null,null,null,null,null,null,null,null,null,null,{"$f":"COUNTA(Juillet[[#This Row],[1]:[31]])","v":0}]
[null,null,null,null,null,null,null,null,null,null,null,null,null,null,null,null,null,null,null,null,null,null,null,null,null,null,null,null,null,null,null,null,null,{"$f":"COUNTA(Juillet[[#This Row],[1]:[31]])","v":0}]
[null,null,null,null,null,null,null,null,null,null,null,null,null,null,null,null,null,null,null,null,null,null,null,null,null,null,null,null,null,null,null,null,null,{"$f":"COUNTA(Juillet[[#This Row],[1]:[31]])","v":0}]
[null,null,null,null,null,null,null,null,null,null,null,null,null,null,null,null,null,null,null,null,null,null,null,null,null,null,null,null,null,null,null,null,null,{"$f":"COUNTA(Juillet[[#This Row],[1]:[31]])","v":0}]
[null,null,null,null,null,null,null,null,null,null,null,null,null,null,null,null,null,null,null,null,null,null,null,null,null,null,null,null,null,null,null,null,null,{"$f":"COUNTA(Juillet[[#This Row],[1]:[31]])","v":0}]
[null,null,null,null,null,null,null,null,null,null,null,null,null,null,null,null,null,null,null,null,null,null,null,null,null,null,null,null,null,null,null,null,null,{"$f":"COUNTA(Juillet[[#This Row],[1]:[31]])","v":0}]
[null,{"$f":"NomMois&\" Total\"","v":"Juillet Total"},{"$f":"SUBTOTAL(103,Juillet[1])","v":0},{"$f":"SUBTOTAL(103,Juillet[2])","v":0},{"$f":"SUBTOTAL(103,Juillet[3])","v":0},{"$f":"SUBTOTAL(103,Juillet[4])","v":0},{"$f":"SUBTOTAL(103,Juillet[5])","v":0},{"$f":"SUBTOTAL(103,Juillet[6])","v":0},{"$f":"SUBTOTAL(103,Juillet[7])","v":0},{"$f":"SUBTOTAL(103,Juillet[8])","v":0},{"$f":"SUBTOTAL(103,Juillet[9])","v":0},{"$f":"SUBTOTAL(103,Juillet[10])","v":0},{"$f":"SUBTOTAL(103,Juillet[11])","v":0},{"$f":"SUBTOTAL(103,Juillet[12])","v":0},{"$f":"SUBTOTAL(103,Juillet[13])","v":0},{"$f":"SUBTOTAL(103,Juillet[14])","v":0},{"$f":"SUBTOTAL(103,Juillet[15])","v":0},{"$f":"SUBTOTAL(103,Juillet[16])","v":0},{"$f":"SUBTOTAL(103,Juillet[17])","v":0},{"$f":"SUBTOTAL(103,Juillet[18])","v":0},{"$f":"SUBTOTAL(103,Juillet[19])","v":0},{"$f":"SUBTOTAL(103,Juillet[20])","v":0},{"$f":"SUBTOTAL(103,Juillet[21])","v":0},{"$f":"SUBTOTAL(103,Juillet[22])","v":0},{"$f":"SUBTOTAL(103,Juillet[23])","v":0},{"$f":"SUBTOTAL(103,Juillet[24])","v":0},{"$f":"SUBTOTAL(103,Juillet[25])","v":0},{"$f":"SUBTOTAL(103,Juillet[26])","v":0},{"$f":"SUBTOTAL(103,Juillet[27])","v":0},{"$f":"SUBTOTAL(103,Juillet[28])","v":0},{"$f":"SUBTOTAL(103,Juillet[29])","v":0},{"$f":"SUBTOTAL(109,Juillet[30])","v":0},{"$f":"SUBTOTAL(109,Juillet[31])","v":0},{"$f":"SUBTOTAL(109,Juillet[Total des jours])","v":0}]

{"sheet":"Août","index":7,"n_rows":53,"n_cols":34,"rows_kept":53,"cut":false,"hidden":false,"merged":[[5,2,5,32]]}
[null,"Calendrier des absences des employés"]
[null,"Août"]
[]
[null,"Clé de motif d’absence","C","Congé",null,"P","Privé","M","Maladie","T","Test","ESE","Entretien ",null,"R","Réunion",null,"TT","Télétravail",null,"F","Forum",null,"TT"]
[]
[null,null,"Dates d’absence",null,null,null,null,null,null,null,null,null,null,null,null,null,null,null,null,null,null,null,null,null,null,null,null,null,null,null,null,null,null,{"$f":"CalendarYear","v":2024}]
[null,null,{"$f":"TEXT(WEEKDAY(DATE(CalendarYear,8,1),1),\"jjj\")","v":"jeu"},{"$f":"TEXT(WEEKDAY(DATE(CalendarYear,8,2),1),\"jjj\")","v":"ven"},{"$f":"TEXT(WEEKDAY(DATE(CalendarYear,8,3),1),\"jjj\")","v":"sam"},{"$f":"TEXT(WEEKDAY(DATE(CalendarYear,8,4),1),\"jjj\")","v":"dim"},{"$f":"TEXT(WEEKDAY(DATE(CalendarYear,8,5),1),\"jjj\")","v":"lun"},{"$f":"TEXT(WEEKDAY(DATE(CalendarYear,8,6),1),\"jjj\")","v":"mar"},{"$f":"TEXT(WEEKDAY(DATE(CalendarYear,8,7),1),\"jjj\")","v":"mer"},{"$f":"TEXT(WEEKDAY(DATE(CalendarYear,8,8),1),\"jjj\")","v":"jeu"},{"$f":"TEXT(WEEKDAY(DATE(CalendarYear,8,9),1),\"jjj\")","v":"ven"},{"$f":"TEXT(WEEKDAY(DATE(CalendarYear,8,10),1),\"jjj\")","v":"sam"},{"$f":"TEXT(WEEKDAY(DATE(CalendarYear,8,11),1),\"jjj\")","v":"dim"},{"$f":"TEXT(WEEKDAY(DATE(CalendarYear,8,12),1),\"jjj\")","v":"lun"},{"$f":"TEXT(WEEKDAY(DATE(CalendarYear,8,13),1),\"jjj\")","v":"mar"},{"$f":"TEXT(WEEKDAY(DATE(CalendarYear,8,14),1),\"jjj\")","v":"mer"},{"$f":"TEXT(WEEKDAY(DATE(CalendarYear,8,15),1),\"jjj\")","v":"jeu"},{"$f":"TEXT(WEEKDAY(DATE(CalendarYear,8,16),1),\"jjj\")","v":"ven"},{"$f":"TEXT(WEEKDAY(DATE(CalendarYear,8,17),1),\"jjj\")","v":"sam"},{"$f":"TEXT(WEEKDAY(DATE(CalendarYear,8,18),1),\"jjj\")","v":"dim"},{"$f":"TEXT(WEEKDAY(DATE(CalendarYear,8,19),1),\"jjj\")","v":"lun"},{"$f":"TEXT(WEEKDAY(DATE(CalendarYear,8,20),1),\"jjj\")","v":"mar"},{"$f":"TEXT(WEEKDAY(DATE(CalendarYear,8,21),1),\"jjj\")","v":"mer"},{"$f":"TEXT(WEEKDAY(DATE(CalendarYear,8,22),1),\"jjj\")","v":"jeu"},{"$f":"TEXT(WEEKDAY(DATE(CalendarYear,8,23),1),\"jjj\")","v":"ven"},{"$f":"TEXT(WEEKDAY(DATE(CalendarYear,8,24),1),\"jjj\")","v":"sam"},{"$f":"TEXT(WEEKDAY(DATE(CalendarYear,8,25),1),\"jjj\")","v":"dim"},{"$f":"TEXT(WEEKDAY(DATE(CalendarYear,8,26),1),\"jjj\")","v":"lun"},{"$f":"TEXT(WEEKDAY(DATE(CalendarYear,8,27),1),\"jjj\")","v":"mar"},{"$f":"TEXT(WEEKDAY(DATE(CalendarYear,8,28),1),\"jjj\")","v":"mer"},{"$f":"TEXT(WEEKDAY(DATE(CalendarYear,8,29),1),\"jjj\")","v":"jeu"},{"$f":"TEXT(WEEKDAY(DATE(CalendarYear,8,30),1),\"jjj\")","v":"ven"},{"$f":"TEXT(WEEKDAY(DATE(CalendarYear,8,31),1),\"jjj\")","v":"sam"}]
[null,"Nom de l’employé","1","2","3","4","5","6","7","8","9","10","11","12","13","14","15","16","17","18","19","20","21","22","23","24","25","26","27","28","29","30","31","Total des jours"]
[null,"Laure PALACIN",null,null,null,null,null,null,null,null,null,null,null,null,null,null,null,null,null,null,null,null,null,null,null,null,null,null,null,null,null,null,null,{"$f":"COUNTA(Août[[#This Row],[1]:[31]])","v":0}]
[null,null,null,null,null,null,null,null,null,null,null,null,null,null,null,null,null,null,null,null,null,null,null,null,null,null,null,null,null,null,null,null,null,{"$f":"COUNTA(Août[[#This Row],[1]:[31]])","v":0}]
[null,"Sandrine CAFAFA",null,null,null,null,null,null,null,null,null,null,null,null,null,null,null,null,null,null,null,null,null,null,null,null,null,null,null,null,null,null,null,{"$f":"COUNTA(Août[[#This Row],[1]:[31]])","v":0}]
[null,null,null,null,null,null,null,null,null,null,null,null,null,null,null,null,null,null,null,null,null,null,null,null,null,null,null,null,null,null,null,null,null,{"$f":"COUNTA(Août[[#This Row],[1]:[31]])","v":0}]
[null,"Anifa BOUKHRISS",null,null,null,null,null,null,null,null,null,null,null,null,null,null,null,null,null,null,null,null,null,null,null,null,null,null,null,null,null,null,null,{"$f":"COUNTA(Août[[#This Row],[1]:[31]])","v":0}]
[null,null,null,null,null,null,null,null,null,null,null,null,null,null,null,null,null,null,null,null,null,null,null,null,null,null,null,null,null,null,null,null,null,{"$f":"COUNTA(Août[[#This Row],[1]:[31]])","v":0}]
[null,"Valérie BONVEL",null,null,null,null,null,null,null,null,null,null,null,null,null,null,null,null,null,null,null,null,null,null,null,null,null,null,null,null,null,null,null,{"$f":"COUNTA(Août[[#This Row],[1]:[31]])","v":0}]
[null,null,null,null,null,null,null,null,null,null,null,null,null,null,null,null,null,null,null,null,null,null,null,null,null,null,null,null,null,null,null,null,null,{"$f":"COUNTA(Août[[#This Row],[1]:[31]])","v":0}]
[null,"Alexandre KIOSSES",null,null,null,null,null,null,null,null,null,null,null,null,null,null,null,null,null,null,null,null,null,null,null,null,null,null,null,null,null,null,null,{"$f":"COUNTA(Août[[#This Row],[1]:[31]])","v":0}]
[null,null,null,null,null,null,null,null,null,null,null,null,null,null,null,null,null,null,null,null,null,null,null,null,null,null,null,null,null,null,null,null,null,{"$f":"COUNTA(Août[[#This Row],[1]:[31]])","v":0}]
[null,"Isabelle SANTERRE",null,null,null,null,null,null,null,null,null,null,null,null,null,null,null,null,null,null,null,null,null,null,null,null,null,null,null,null,null,null,null,{"$f":"COUNTA(Août[[#This Row],[1]:[31]])","v":0}]
[null,null,null,null,null,null,null,null,null,null,null,null,null,null,null,null,null,null,null,null,null,null,null,null,null,null,null,null,null,null,null,null,null,{"$f":"COUNTA(Août[[#This Row],[1]:[31]])","v":0}]
[null,"Madeline VENTURA",null,null,null,null,null,null,null,null,null,null,null,null,null,null,null,null,null,null,null,null,null,null,null,null,null,null,null,null,null,null,null,{"$f":"COUNTA(Août[[#This Row],[1]:[31]])","v":0}]
[null,null,null,null,null,null,null,null,null,null,null,null,null,null,null,null,null,null,null,null,null,null,null,null,null,null,null,null,null,null,null,null,null,{"$f":"COUNTA(Août[[#This Row],[1]:[31]])","v":0}]
[null,"Hamida MAHI",null,null,null,null,null,null,null,null,null,null,null,null,null,null,null,null,null,null,null,null,null,null,null,null,null,null,null,null,null,null,null,{"$f":"COUNTA(Août[[#This Row],[1]:[31]])","v":0}]
[null,null,null,null,null,null,null,null,null,null,null,null,null,null,null,null,null,null,null,null,null,null,null,null,null,null,null,null,null,null,null,null,null,{"$f":"COUNTA(Août[[#This Row],[1]:[31]])","v":0}]
[null,"Isabelle GIESECKE",null,null,null,null,null,null,null,null,null,null,null,null,null,null,null,null,null,null,null,null,null,null,null,null,null,null,null,null,null,null,null,{"$f":"COUNTA(Août[[#This Row],[1]:[31]])","v":0}]
[null,null,null,null,null,null,null,null,null,null,null,null,null,null,null,null,null,null,null,null,null,null,null,null,null,null,null,null,null,null,null,null,null,{"$f":"COUNTA(Août[[#This Row],[1]:[31]])","v":0}]
[null,"Sandrine POIRSOIN",null,null,null,null,null,null,null,null,null,null,null,null,null,null,null,null,null,null,null,null,null,null,null,null,null,null,null,null,null,null,null,{"$f":"COUNTA(Août[[#This Row],[1]:[31]])","v":0}]
[null,null,null,null,null,null,null,null,null,null,null,null,null,null,null,null,null,null,null,null,null,null,null,null,null,null,null,null,null,null,null,null,null,{"$f":"COUNTA(Août[[#This Row],[1]:[31]])","v":0}]
[null,"Florence MASSIE",null,null,null,null,null,null,null,null,null,null,null,null,null,null,null,null,null,null,null,null,null,null,null,null,null,null,null,null,null,null,null,{"$f":"COUNTA(Août[[#This Row],[1]:[31]])","v":0}]
[null,null,null,null,null,null,null,null,null,null,null,null,null,null,null,null,null,null,null,null,null,null,null,null,null,null,null,null,null,null,null,null,null,{"$f":"COUNTA(Août[[#This Row],[1]:[31]])","v":0}]
[null,"Rym ARAB",null,null,null,null,null,null,null,null,null,null,null,null,null,null,null,null,null,null,null,null,null,null,null,null,null,null,null,null,null,null,null,{"$f":"COUNTA(Août[[#This Row],[1]:[31]])","v":0}]
[null,null,null,null,null,null,null,null,null,null,null,null,null,null,null,null,null,null,null,null,null,null,null,null,"tt",null,null,null,null,null,null,null,null,{"$f":"COUNTA(Août[[#This Row],[1]:[31]])","v":1}]
[null,"Benoit DUPRE",null,null,null,null,null,null,null,null,null,null,null,null,null,null,null,null,null,null,null,null,null,null,null,null,null,null,null,null,null,null,null,{"$f":"COUNTA(Août[[#This Row],[1]:[31]])","v":0}]
[null,null,null,null,null,null,null,null,null,null,null,null,null,null,null,null,null,null,null,null,null,null,null,null,null,null,null,null,null,null,null,null,null,{"$f":"COUNTA(Août[[#This Row],[1]:[31]])","v":0}]
[null,"Bénédicte REBAGLIATO",null,null,null,null,null,null,null,null,null,null,null,null,null,null,null,null,null,null,null,null,null,null,null,null,null,null,null,null,null,null,null,{"$f":"COUNTA(Août[[#This Row],[1]:[31]])","v":0}]
[null,null,null,null,null,null,null,null,null,null,null,null,null,null,null,null,null,null,null,null,null,null,null,null,null,null,null,null,null,null,null,null,null,{"$f":"COUNTA(Août[[#This Row],[1]:[31]])","v":0}]
[null,"Eliott ARNOLD",null,null,null,null,null,null,null,null,null,null,null,null,null,null,null,null,null,null,null,null,null,null,null,null,null,null,null,null,null,null,null,{"$f":"COUNTA(Août[[#This Row],[1]:[31]])","v":0}]
[null,null,null,null,null,null,null,null,null,null,null,null,null,null,null,null,null,null,null,null,null,null,null,null,null,null,null,null,null,null,null,null,null,{"$f":"COUNTA(Août[[#This Row],[1]:[31]])","v":0}]
[null,"Vincent DEBENNE",null,null,null,null,null,null,null,null,null,null,null,null,null,null,null,null,null,null,null,null,null,null,null,null,null,null,null,null,null,null,null,{"$f":"COUNTA(Août[[#This Row],[1]:[31]])","v":0}]
[null,null,null,null,null,null,null,null,null,null,null,null,null,null,null,null,null,null,null,null,null,null,null,null,null,null,null,null,null,null,null,null,null,{"$f":"COUNTA(Août[[#This Row],[1]:[31]])","v":0}]
[null,"Céline GEOFFROY",null,null,null,null,null,null,null,null,null,null,null,null,null,null,null,null,null,null,null,null,null,null,null,null,null,null,null,null,null,null,null,{"$f":"COUNTA(Août[[#This Row],[1]:[31]])","v":0}]
[null,null,null,null,null,null,null,null,null,null,null,null,null,null,null,null,null,null,null,null,null,null,null,null,null,null,null,null,null,null,null,null,null,{"$f":"COUNTA(Août[[#This Row],[1]:[31]])","v":0}]
[null,null,null,null,null,null,null,null,null,null,null,null,null,null,null,null,null,null,null,null,null,null,null,null,null,null,null,null,null,null,null,null,null,{"$f":"COUNTA(Août[[#This Row],[1]:[31]])","v":0}]
[null,null,null,null,null,null,null,null,null,null,null,null,null,null,null,null,null,null,null,null,null,null,null,null,null,null,null,null,null,null,null,null,null,{"$f":"COUNTA(Août[[#This Row],[1]:[31]])","v":0}]
[null,null,null,null,null,null,null,null,null,null,null,null,null,null,null,null,null,null,null,null,null,null,null,null,null,null,null,null,null,null,null,null,null,{"$f":"COUNTA(Août[[#This Row],[1]:[31]])","v":0}]
[null,null,null,null,null,null,null,null,null,null,null,null,null,null,null,null,null,null,null,null,null,null,null,null,null,null,null,null,null,null,null,null,null,{"$f":"COUNTA(Août[[#This Row],[1]:[31]])","v":0}]
[null,null,null,null,null,null,null,null,null,null,null,null,null,null,null,null,null,null,null,null,null,null,null,null,null,null,null,null,null,null,null,null,null,{"$f":"COUNTA(Août[[#This Row],[1]:[31]])","v":0}]
[null,null,null,null,null,null,null,null,null,null,null,null,null,null,null,null,null,null,null,null,null,null,null,null,null,null,null,null,null,null,null,null,null,{"$f":"COUNTA(Août[[#This Row],[1]:[31]])","v":0}]
[null,null,null,null,null,null,null,null,null,null,null,null,null,null,null,null,null,null,null,null,null,null,null,null,null,null,null,null,null,null,null,null,null,{"$f":"COUNTA(Août[[#This Row],[1]:[31]])","v":0}]
[null,null,null,null,null,null,null,null,null,null,null,null,null,null,null,null,null,null,null,null,null,null,null,null,null,null,null,null,null,null,null,null,null,{"$f":"COUNTA(Août[[#This Row],[1]:[31]])","v":0}]
[null,null,null,null,null,null,null,null,null,null,null,null,null,null,null,null,null,null,null,null,null,null,null,null,null,null,null,null,null,null,null,null,null,{"$f":"COUNTA(Août[[#This Row],[1]:[31]])","v":0}]
[null,null,null,null,null,null,null,null,null,null,null,null,null,null,null,null,null,null,null,null,null,null,null,null,null,null,null,null,null,null,null,null,null,{"$f":"COUNTA(Août[[#This Row],[1]:[31]])","v":0}]
[null,{"$f":"NomMois&\" Total\"","v":"Août Total"},{"$f":"SUBTOTAL(103,Août[1])","v":0},{"$f":"SUBTOTAL(103,Août[2])","v":0},{"$f":"SUBTOTAL(103,Août[3])","v":0},{"$f":"SUBTOTAL(103,Août[4])","v":0},{"$f":"SUBTOTAL(103,Août[5])","v":0},{"$f":"SUBTOTAL(103,Août[6])","v":0},{"$f":"SUBTOTAL(103,Août[7])","v":0},{"$f":"SUBTOTAL(103,Août[8])","v":0},{"$f":"SUBTOTAL(103,Août[9])","v":0},{"$f":"SUBTOTAL(103,Août[10])","v":0},{"$f":"SUBTOTAL(103,Août[11])","v":0},{"$f":"SUBTOTAL(103,Août[12])","v":0},{"$f":"SUBTOTAL(103,Août[13])","v":0},{"$f":"SUBTOTAL(103,Août[14])","v":0},{"$f":"SUBTOTAL(103,Août[15])","v":0},{"$f":"SUBTOTAL(103,Août[16])","v":0},{"$f":"SUBTOTAL(103,Août[17])","v":0},{"$f":"SUBTOTAL(103,Août[18])","v":0},{"$f":"SUBTOTAL(103,Août[19])","v":0},{"$f":"SUBTOTAL(103,Août[20])","v":0},{"$f":"SUBTOTAL(103,Août[21])","v":0},{"$f":"SUBTOTAL(103,Août[22])","v":0},{"$f":"SUBTOTAL(103,Août[23])","v":1},{"$f":"SUBTOTAL(103,Août[24])","v":0},{"$f":"SUBTOTAL(103,Août[25])","v":0},{"$f":"SUBTOTAL(103,Août[26])","v":0},{"$f":"SUBTOTAL(103,Août[27])","v":0},{"$f":"SUBTOTAL(103,Août[28])","v":0},{"$f":"SUBTOTAL(103,Août[29])","v":0},{"$f":"SUBTOTAL(109,Août[30])","v":0},{"$f":"SUBTOTAL(109,Août[31])","v":0},{"$f":"SUBTOTAL(109,Août[Total des jours])","v":1}]

{"sheet":"Septembre","index":8,"n_rows":53,"n_cols":34,"rows_kept":53,"cut":false,"hidden":false,"merged":[[5,2,5,32]]}
[null,"Calendrier des absences des employés"]
[null,"Septembre"]
[]
[null,"Clé de motif d’absence","C","Congé",null,"P","Privé","M","Maladie","T","Test","ESE","Entretien ",null,"R","Réunion",null,"TT","Télétravail",null,"F","Forum",null,"TT"]
[]
[null,null,"Dates d’absence",null,null,null,null,null,null,null,null,null,null,null,null,null,null,null,null,null,null,null,null,null,null,null,null,null,null,null,null,null,null,2024]
[null,null,{"$f":"TEXT(WEEKDAY(DATE(CalendarYear,9,1),1),\"jjj\")","v":"dim"},{"$f":"TEXT(WEEKDAY(DATE(CalendarYear,9,2),1),\"jjj\")","v":"lun"},{"$f":"TEXT(WEEKDAY(DATE(CalendarYear,9,3),1),\"jjj\")","v":"mar"},{"$f":"TEXT(WEEKDAY(DATE(CalendarYear,9,4),1),\"jjj\")","v":"mer"},{"$f":"TEXT(WEEKDAY(DATE(CalendarYear,9,5),1),\"jjj\")","v":"jeu"},{"$f":"TEXT(WEEKDAY(DATE(CalendarYear,9,6),1),\"jjj\")","v":"ven"},{"$f":"TEXT(WEEKDAY(DATE(CalendarYear,9,7),1),\"jjj\")","v":"sam"},{"$f":"TEXT(WEEKDAY(DATE(CalendarYear,9,8),1),\"jjj\")","v":"dim"},{"$f":"TEXT(WEEKDAY(DATE(CalendarYear,9,9),1),\"jjj\")","v":"lun"},{"$f":"TEXT(WEEKDAY(DATE(CalendarYear,9,10),1),\"jjj\")","v":"mar"},{"$f":"TEXT(WEEKDAY(DATE(CalendarYear,9,11),1),\"jjj\")","v":"mer"},{"$f":"TEXT(WEEKDAY(DATE(CalendarYear,9,12),1),\"jjj\")","v":"jeu"},{"$f":"TEXT(WEEKDAY(DATE(CalendarYear,9,13),1),\"jjj\")","v":"ven"},{"$f":"TEXT(WEEKDAY(DATE(CalendarYear,9,14),1),\"jjj\")","v":"sam"},{"$f":"TEXT(WEEKDAY(DATE(CalendarYear,9,15),1),\"jjj\")","v":"dim"},{"$f":"TEXT(WEEKDAY(DATE(CalendarYear,9,16),1),\"jjj\")","v":"lun"},{"$f":"TEXT(WEEKDAY(DATE(CalendarYear,9,17),1),\"jjj\")","v":"mar"},{"$f":"TEXT(WEEKDAY(DATE(CalendarYear,9,18),1),\"jjj\")","v":"mer"},{"$f":"TEXT(WEEKDAY(DATE(CalendarYear,9,19),1),\"jjj\")","v":"jeu"},{"$f":"TEXT(WEEKDAY(DATE(CalendarYear,9,20),1),\"jjj\")","v":"ven"},{"$f":"TEXT(WEEKDAY(DATE(CalendarYear,9,21),1),\"jjj\")","v":"sam"},{"$f":"TEXT(WEEKDAY(DATE(CalendarYear,9,22),1),\"jjj\")","v":"dim"},{"$f":"TEXT(WEEKDAY(DATE(CalendarYear,9,23),1),\"jjj\")","v":"lun"},{"$f":"TEXT(WEEKDAY(DATE(CalendarYear,9,24),1),\"jjj\")","v":"mar"},{"$f":"TEXT(WEEKDAY(DATE(CalendarYear,9,25),1),\"jjj\")","v":"mer"},{"$f":"TEXT(WEEKDAY(DATE(CalendarYear,9,26),1),\"jjj\")","v":"jeu"},{"$f":"TEXT(WEEKDAY(DATE(CalendarYear,9,27),1),\"jjj\")","v":"ven"},{"$f":"TEXT(WEEKDAY(DATE(CalendarYear,9,28),1),\"jjj\")","v":"sam"},{"$f":"TEXT(WEEKDAY(DATE(CalendarYear,9,29),1),\"jjj\")","v":"dim"},{"$f":"TEXT(WEEKDAY(DATE(CalendarYear,9,30),1),\"jjj\")","v":"lun"}]
[null,"Nom de l’employé","1","2","3","4","5","6","7","8","9","10","11","12","13","14","15","16","17","18","19","20","21","22","23","24","25","26","27","28","29","30"," ","Total des jours"]
[null,"Laure PALACIN",null,null,null,null,null,null,null,null,null,null,null,null,null,null,null,null,null,null,null,null,null,null,null,null,null,null,null,null,null,null,null,{"$f":"COUNTA(Septembre[[#This Row],[1]:[ ]])","v":0}]
[null,null,null,null,null,null,null,null,null,null,null,null,null,null,null,null,null,null,null,null,null,null,null,null,null,null,null,null,null,null,null,null,null,{"$f":"COUNTA(Septembre[[#This Row],[1]:[ ]])","v":0}]
[null,"Sandrine CAFAFA",null,null,null,null,null,null,null,null,null,null,null,null,null,null,null,null,null,null,null,null,null,null,null,null,null,null,null,null,null,null,null,{"$f":"COUNTA(Septembre[[#This Row],[1]:[ ]])","v":0}]
[null,null,null,null,null,null,null,null,null,null,null,null,null,null,null,null,null,null,null,null,null,null,null,null,null,null,null,null,null,null,null,null,null,{"$f":"COUNTA(Septembre[[#This Row],[1]:[ ]])","v":0}]
[null,"Anifa BOUKHRISS",null,null,null,null,null,null,null,null,null,null,null,null,null,null,null,null,null,null,null,null,null,null,null,null,null,null,null,null,null,null,null,{"$f":"COUNTA(Septembre[[#This Row],[1]:[ ]])","v":0}]
[null,null,null,null,null,null,null,null,null,null,null,null,null,null,null,null,null,null,null,null,null,null,null,null,null,null,null,null,null,null,null,null,null,{"$f":"COUNTA(Septembre[[#This Row],[1]:[ ]])","v":0}]
[null,"Valérie BONVEL",null,null,null,null,null,null,null,null,null,null,null,null,null,null,null,null,null,null,null,null,null,null,null,null,null,null,null,null,null,null,null,{"$f":"COUNTA(Septembre[[#This Row],[1]:[ ]])","v":0}]
[null,null,null,null,null,null,null,null,null,null,null,null,null,null,null,null,null,null,null,null,null,null,null,null,null,null,null,null,null,null,null,null,null,{"$f":"COUNTA(Septembre[[#This Row],[1]:[ ]])","v":0}]
[null,"Alexandre KIOSSES",null,null,null,null,null,null,null,null,null,null,null,null,null,null,null,null,null,null,null,null,null,null,null,null,null,null,null,null,null,null,null,{"$f":"COUNTA(Septembre[[#This Row],[1]:[ ]])","v":0}]
[null,null,null,null,null,null,null,null,null,null,null,null,null,null,null,null,null,null,null,null,null,null,null,null,null,null,null,null,null,null,null,null,null,{"$f":"COUNTA(Septembre[[#This Row],[1]:[ ]])","v":0}]
[null,"Isabelle SANTERRE",null,null,null,null,null,null,null,null,null,null,null,null,null,null,null,null,null,null,null,null,null,null,null,null,null,null,null,null,null,null,null,{"$f":"COUNTA(Septembre[[#This Row],[1]:[ ]])","v":0}]
[null,null,null,null,null,null,null,null,null,null,null,null,null,null,null,null,null,null,null,null,null,null,null,null,null,null,null,null,null,null,null,null,null,{"$f":"COUNTA(Septembre[[#This Row],[1]:[ ]])","v":0}]
[null,"Madeline VENTURA",null,null,null,null,null,null,null,null,null,null,null,null,null,null,null,null,null,null,null,null,null,null,null,null,null,null,null,null,null,null,null,{"$f":"COUNTA(Septembre[[#This Row],[1]:[ ]])","v":0}]
[null,null,null,null,null,null,null,null,null,null,null,null,null,null,null,null,null,null,null,null,null,null,null,null,null,null,null,null,null,null,null,null,null,{"$f":"COUNTA(Septembre[[#This Row],[1]:[ ]])","v":0}]
[null,"Hamida MAHI",null,null,null,null,null,null,null,null,null,null,null,null,null,null,null,null,null,null,null,null,null,null,null,null,null,null,null,null,null,null,null,{"$f":"COUNTA(Septembre[[#This Row],[1]:[ ]])","v":0}]
[null,null,null,null,null,null,null,null,null,null,null,null,null,null,null,null,null,null,null,null,null,null,null,null,null,null,null,null,null,null,null,null,null,{"$f":"COUNTA(Septembre[[#This Row],[1]:[ ]])","v":0}]
[null,"Isabelle GIESECKE",null,null,null,null,null,null,null,null,null,null,null,null,null,null,null,null,null,null,null,null,null,null,null,null,null,null,null,null,null,null,null,{"$f":"COUNTA(Septembre[[#This Row],[1]:[ ]])","v":0}]
[null,null,null,null,null,null,null,null,null,null,null,null,null,null,null,null,null,null,null,null,null,null,null,null,null,null,null,null,null,null,null,null,null,{"$f":"COUNTA(Septembre[[#This Row],[1]:[ ]])","v":0}]
[null,"Sandrine POIRSOIN",null,null,null,null,null,null,null,null,null,null,null,null,null,null,null,null,null,null,null,null,null,null,null,null,null,null,null,null,null,null,null,{"$f":"COUNTA(Septembre[[#This Row],[1]:[ ]])","v":0}]
[null,null,null,null,null,null,null,null,null,null,null,null,null,null,null,null,null,null,null,null,null,null,null,null,null,null,null,null,null,null,null,null,null,{"$f":"COUNTA(Septembre[[#This Row],[1]:[ ]])","v":0}]
[null,"Florence MASSIE",null,null,null,null,null,null,null,null,null,null,null,null,null,null,null,null,null,null,null,null,null,null,null,null,null,null,null,null,null,null,null,{"$f":"COUNTA(Septembre[[#This Row],[1]:[ ]])","v":0}]
[null,null,null,null,null,null,null,null,null,null,null,null,null,null,null,null,null,null,null,null,null,null,null,null,null,null,null,null,null,null,null,null,null,{"$f":"COUNTA(Septembre[[#This Row],[1]:[ ]])","v":0}]
[null,"Rym ARAB",null,null,null,null,null,null,null,null,null,null,null,null,null,null,null,null,null,null,null,null,null,null,null,null,null,null,null,null,null,null,null,{"$f":"COUNTA(Septembre[[#This Row],[1]:[ ]])","v":0}]
[null,null,null,null,null,null,null,null,null,null,null,null,null,null,null,null,null,null,null,null,null,null,null,null,null,null,null,null,null,null,null,null,null,{"$f":"COUNTA(Septembre[[#This Row],[1]:[ ]])","v":0}]
[null,"Benoit DUPRE",null,null,null,null,null,null,null,null,null,null,null,null,null,null,null,null,null,null,null,null,null,null,null,null,null,null,null,null,null,null,null,{"$f":"COUNTA(Septembre[[#This Row],[1]:[ ]])","v":0}]
[null,null,null,null,null,null,null,null,null,null,null,null,null,null,null,null,null,null,null,null,null,null,null,null,null,null,null,null,null,null,null,null,null,{"$f":"COUNTA(Septembre[[#This Row],[1]:[ ]])","v":0}]
[null,"Bénédicte REBAGLIATO",null,null,null,null,null,null,null,null,null,null,null,null,null,null,null,null,null,null,null,null,null,null,null,null,null,null,null,null,null,null,null,{"$f":"COUNTA(Septembre[[#This Row],[1]:[ ]])","v":0}]
[null,null,null,null,null,null,null,null,null,null,null,null,null,null,null,null,null,null,null,null,null,null,null,null,null,null,null,null,null,null,null,null,null,{"$f":"COUNTA(Septembre[[#This Row],[1]:[ ]])","v":0}]
[null,"Eliott ARNOLD",null,null,null,null,null,null,null,null,null,null,null,null,null,null,null,null,null,null,null,null,null,null,null,null,null,null,null,null,null,null,null,{"$f":"COUNTA(Septembre[[#This Row],[1]:[ ]])","v":0}]
[null,null,null,null,null,null,null,null,null,null,null,null,null,null,null,null,null,null,null,null,null,null,null,null,null,null,null,null,null,null,null,null,null,{"$f":"COUNTA(Septembre[[#This Row],[1]:[ ]])","v":0}]
[null,"Vincent DEBENNE",null,null,null,null,null,null,null,null,null,null,null,null,null,null,null,null,null,null,null,null,null,null,null,null,null,null,null,null,null,null,null,{"$f":"COUNTA(Septembre[[#This Row],[1]:[ ]])","v":0}]
[null,null,null,null,null,null,null,null,null,null,null,null,null,null,null,null,null,null,null,null,null,null,null,null,null,null,null,null,null,null,null,null,null,{"$f":"COUNTA(Septembre[[#This Row],[1]:[ ]])","v":0}]
[null,"Céline GEOFFROY",null,null,null,null,null,null,null,null,null,null,null,null,null,null,null,null,null,null,null,null,null,null,null,null,null,null,null,null,null,null,null,{"$f":"COUNTA(Septembre[[#This Row],[1]:[ ]])","v":0}]
[null,null,null,null,null,null,null,null,null,null,null,null,null,null,null,null,null,null,null,null,null,null,null,null,null,null,null,null,null,null,null,null,null,{"$f":"COUNTA(Septembre[[#This Row],[1]:[ ]])","v":0}]
[null,null,null,null,null,null,null,null,null,null,null,null,null,null,null,null,null,null,null,null,null,null,null,null,null,null,null,null,null,null,null,null,null,{"$f":"COUNTA(Septembre[[#This Row],[1]:[ ]])","v":0}]
[null,null,null,null,null,null,null,null,null,null,null,null,null,null,null,null,null,null,null,null,null,null,null,null,null,null,null,null,null,null,null,null,null,{"$f":"COUNTA(Septembre[[#This Row],[1]:[ ]])","v":0}]
[null,null,null,null,null,null,null,null,null,null,null,null,null,null,null,null,null,null,null,null,null,null,null,null,null,null,null,null,null,null,null,null,null,{"$f":"COUNTA(Septembre[[#This Row],[1]:[ ]])","v":0}]
[null,null,null,null,null,null,null,null,null,null,null,null,null,null,null,null,null,null,null,null,null,null,null,null,null,null,null,null,null,null,null,null,null,{"$f":"COUNTA(Septembre[[#This Row],[1]:[ ]])","v":0}]
[null,null,null,null,null,null,null,null,null,null,null,null,null,null,null,null,null,null,null,null,null,null,null,null,null,null,null,null,null,null,null,null,null,{"$f":"COUNTA(Septembre[[#This Row],[1]:[ ]])","v":0}]
[null,null,null,null,null,null,null,null,null,null,null,null,null,null,null,null,null,null,null,null,null,null,null,null,null,null,null,null,null,null,null,null,null,{"$f":"COUNTA(Septembre[[#This Row],[1]:[ ]])","v":0}]
[null,null,null,null,null,null,null,null,null,null,null,null,null,null,null,null,null,null,null,null,null,null,null,null,null,null,null,null,null,null,null,null,null,{"$f":"COUNTA(Septembre[[#This Row],[1]:[ ]])","v":0}]
[null,null,null,null,null,null,null,null,null,null,null,null,null,null,null,null,null,null,null,null,null,null,null,null,null,null,null,null,null,null,null,null,null,{"$f":"COUNTA(Septembre[[#This Row],[1]:[ ]])","v":0}]
[null,null,null,null,null,null,null,null,null,null,null,null,null,null,null,null,null,null,null,null,null,null,null,null,null,null,null,null,null,null,null,null,null,{"$f":"COUNTA(Septembre[[#This Row],[1]:[ ]])","v":0}]
[null,null,null,null,null,null,null,null,null,null,null,null,null,null,null,null,null,null,null,null,null,null,null,null,null,null,null,null,null,null,null,null,null,{"$f":"COUNTA(Septembre[[#This Row],[1]:[ ]])","v":0}]
[null,{"$f":"NomMois&\" Total\"","v":"Septembre Total"},{"$f":"SUBTOTAL(103,Septembre[1])","v":0},{"$f":"SUBTOTAL(103,Septembre[2])","v":0},{"$f":"SUBTOTAL(103,Septembre[3])","v":0},{"$f":"SUBTOTAL(103,Septembre[4])","v":0},{"$f":"SUBTOTAL(103,Septembre[5])","v":0},{"$f":"SUBTOTAL(103,Septembre[6])","v":0},{"$f":"SUBTOTAL(103,Septembre[7])","v":0},{"$f":"SUBTOTAL(103,Septembre[8])","v":0},{"$f":"SUBTOTAL(103,Septembre[9])","v":0},{"$f":"SUBTOTAL(103,Septembre[10])","v":0},{"$f":"SUBTOTAL(103,Septembre[11])","v":0},{"$f":"SUBTOTAL(103,Septembre[12])","v":0},{"$f":"SUBTOTAL(103,Septembre[13])","v":0},{"$f":"SUBTOTAL(103,Septembre[14])","v":0},{"$f":"SUBTOTAL(103,Septembre[15])","v":0},{"$f":"SUBTOTAL(103,Septembre[16])","v":0},{"$f":"SUBTOTAL(103,Septembre[17])","v":0},{"$f":"SUBTOTAL(103,Septembre[18])","v":0},{"$f":"SUBTOTAL(103,Septembre[19])","v":0},{"$f":"SUBTOTAL(103,Septembre[20])","v":0},{"$f":"SUBTOTAL(103,Septembre[21])","v":0},{"$f":"SUBTOTAL(103,Septembre[22])","v":0},{"$f":"SUBTOTAL(103,Septembre[23])","v":0},{"$f":"SUBTOTAL(103,Septembre[24])","v":0},{"$f":"SUBTOTAL(103,Septembre[25])","v":0},{"$f":"SUBTOTAL(103,Septembre[26])","v":0},{"$f":"SUBTOTAL(103,Septembre[27])","v":0},{"$f":"SUBTOTAL(103,Septembre[28])","v":0},{"$f":"SUBTOTAL(103,Septembre[29])","v":0},{"$f":"SUBTOTAL(109,Septembre[30])","v":0},{"$f":"SUBTOTAL(109,Septembre[[ ]])","v":0},{"$f":"SUBTOTAL(109,Septembre[Total des jours])","v":0}]

{"sheet":"Octobre","index":9,"n_rows":53,"n_cols":34,"rows_kept":53,"cut":false,"hidden":false,"merged":[[5,2,5,32]]}
[null,"Calendrier des absences des employés"]
[null,"Octobre"]
[]
[null,"Clé de motif d’absence","C","Congé",null,"P","Privé","M","Maladie","T","Test","ESE","Entretien ",null,"R","Réunion",null,"TT","Télétravail",null,"F","Forum",null,"TT"]
[]
[null,null,"Dates d’absence",null,null,null,null,null,null,null,null,null,null,null,null,null,null,null,null,null,null,null,null,null,null,null,null,null,null,null,null,null,null,{"$f":"CalendarYear","v":2024}]
[null,null,{"$f":"TEXT(WEEKDAY(DATE(CalendarYear,10,1),1),\"jjj\")","v":"mar"},{"$f":"TEXT(WEEKDAY(DATE(CalendarYear,10,2),1),\"jjj\")","v":"mer"},{"$f":"TEXT(WEEKDAY(DATE(CalendarYear,10,3),1),\"jjj\")","v":"jeu"},{"$f":"TEXT(WEEKDAY(DATE(CalendarYear,10,4),1),\"jjj\")","v":"ven"},{"$f":"TEXT(WEEKDAY(DATE(CalendarYear,10,5),1),\"jjj\")","v":"sam"},{"$f":"TEXT(WEEKDAY(DATE(CalendarYear,10,6),1),\"jjj\")","v":"dim"},{"$f":"TEXT(WEEKDAY(DATE(CalendarYear,10,7),1),\"jjj\")","v":"lun"},{"$f":"TEXT(WEEKDAY(DATE(CalendarYear,10,8),1),\"jjj\")","v":"mar"},{"$f":"TEXT(WEEKDAY(DATE(CalendarYear,10,9),1),\"jjj\")","v":"mer"},{"$f":"TEXT(WEEKDAY(DATE(CalendarYear,10,10),1),\"jjj\")","v":"jeu"},{"$f":"TEXT(WEEKDAY(DATE(CalendarYear,10,11),1),\"jjj\")","v":"ven"},{"$f":"TEXT(WEEKDAY(DATE(CalendarYear,10,12),1),\"jjj\")","v":"sam"},{"$f":"TEXT(WEEKDAY(DATE(CalendarYear,10,13),1),\"jjj\")","v":"dim"},{"$f":"TEXT(WEEKDAY(DATE(CalendarYear,10,14),1),\"jjj\")","v":"lun"},{"$f":"TEXT(WEEKDAY(DATE(CalendarYear,10,15),1),\"jjj\")","v":"mar"},{"$f":"TEXT(WEEKDAY(DATE(CalendarYear,10,16),1),\"jjj\")","v":"mer"},{"$f":"TEXT(WEEKDAY(DATE(CalendarYear,10,17),1),\"jjj\")","v":"jeu"},{"$f":"TEXT(WEEKDAY(DATE(CalendarYear,10,18),1),\"jjj\")","v":"ven"},{"$f":"TEXT(WEEKDAY(DATE(CalendarYear,10,19),1),\"jjj\")","v":"sam"},{"$f":"TEXT(WEEKDAY(DATE(CalendarYear,10,20),1),\"jjj\")","v":"dim"},{"$f":"TEXT(WEEKDAY(DATE(CalendarYear,10,21),1),\"jjj\")","v":"lun"},{"$f":"TEXT(WEEKDAY(DATE(CalendarYear,10,22),1),\"jjj\")","v":"mar"},{"$f":"TEXT(WEEKDAY(DATE(CalendarYear,10,23),1),\"jjj\")","v":"mer"},{"$f":"TEXT(WEEKDAY(DATE(CalendarYear,10,24),1),\"jjj\")","v":"jeu"},{"$f":"TEXT(WEEKDAY(DATE(CalendarYear,10,25),1),\"jjj\")","v":"ven"},{"$f":"TEXT(WEEKDAY(DATE(CalendarYear,10,26),1),\"jjj\")","v":"sam"},{"$f":"TEXT(WEEKDAY(DATE(CalendarYear,10,27),1),\"jjj\")","v":"dim"},{"$f":"TEXT(WEEKDAY(DATE(CalendarYear,10,28),1),\"jjj\")","v":"lun"},{"$f":"TEXT(WEEKDAY(DATE(CalendarYear,10,29),1),\"jjj\")","v":"mar"},{"$f":"TEXT(WEEKDAY(DATE(CalendarYear,10,30),1),\"jjj\")","v":"mer"},{"$f":"TEXT(WEEKDAY(DATE(CalendarYear,10,31),1),\"jjj\")","v":"jeu"}]
[null,"Nom de l’employé","1","2","3","4","5","6","7","8","9","10","11","12","13","14","15","16","17","18","19","20","21","22","23","24","25","26","27","28","29","30","31","Total des jours"]
[null,"Laure PALACIN",null,null,null,null,null,null,null,null,null,null,null,null,null,null,null,null,null,null,null,null,null,null,null,null,null,null,null,null,null,null,null,{"$f":"COUNTA(Octobre[[#This Row],[1]:[31]])","v":0}]
[null,null,null,null,null,null,null,null,null,null,null,null,null,null,null,null,null,null,null,null,null,null,null,null,null,null,null,null,null,null,null,null,null,{"$f":"COUNTA(Octobre[[#This Row],[1]:[31]])","v":0}]
[null,"Sandrine CAFAFA",null,null,null,null,null,null,null,null,null,null,null,null,null,null,null,null,null,null,null,null,null,null,null,null,null,null,null,null,null,null,null,{"$f":"COUNTA(Octobre[[#This Row],[1]:[31]])","v":0}]
[null,null,null,null,null,null,null,null,null,null,null,null,null,null,null,null,null,null,null,null,null,null,null,null,null,null,null,null,null,null,null,null,null,{"$f":"COUNTA(Octobre[[#This Row],[1]:[31]])","v":0}]
[null,"Anifa BOUKHRISS",null,null,null,null,null,null,null,null,null,null,null,null,null,null,null,null,null,null,null,null,null,null,null,null,null,null,null,null,null,null,null,{"$f":"COUNTA(Octobre[[#This Row],[1]:[31]])","v":0}]
[null,null,null,null,null,null,null,null,null,null,null,null,null,null,null,null,null,null,null,null,null,null,null,null,null,null,null,null,null,null,null,null,null,{"$f":"COUNTA(Octobre[[#This Row],[1]:[31]])","v":0}]
[null,"Valérie BONVEL",null,null,null,null,null,null,null,null,null,null,null,null,null,null,null,null,null,null,null,null,null,null,null,null,null,null,null,null,null,null,null,{"$f":"COUNTA(Octobre[[#This Row],[1]:[31]])","v":0}]
[null,null,null,null,null,null,null,null,null,null,null,null,null,null,null,null,null,null,null,null,null,null,null,null,null,null,null,null,null,null,null,null,null,{"$f":"COUNTA(Octobre[[#This Row],[1]:[31]])","v":0}]
[null,"Alexandre KIOSSES",null,null,null,null,null,null,null,null,null,null,null,null,null,null,null,null,null,null,null,null,null,null,null,null,null,null,null,null,null,null,null,{"$f":"COUNTA(Octobre[[#This Row],[1]:[31]])","v":0}]
[null,null,null,null,null,null,null,null,null,null,null,null,null,null,null,null,null,null,null,null,null,null,null,null,null,null,null,null,null,null,null,null,null,{"$f":"COUNTA(Octobre[[#This Row],[1]:[31]])","v":0}]
[null,"Isabelle SANTERRE",null,null,null,null,null,null,null,null,null,null,null,null,null,null,null,null,null,null,null,null,null,null,null,null,null,null,null,null,null,null,null,{"$f":"COUNTA(Octobre[[#This Row],[1]:[31]])","v":0}]
[null,null,null,null,null,null,null,null,null,null,null,null,null,null,null,null,null,null,null,null,null,null,null,null,null,null,null,null,null,null,null,null,null,{"$f":"COUNTA(Octobre[[#This Row],[1]:[31]])","v":0}]
[null,"Madeline VENTURA",null,null,null,null,null,null,null,null,null,null,null,null,null,null,null,null,null,null,null,null,null,null,null,null,null,null,null,null,null,null,null,{"$f":"COUNTA(Octobre[[#This Row],[1]:[31]])","v":0}]
[null,null,null,null,null,null,null,null,null,null,null,null,null,null,null,null,null,null,null,null,null,null,null,null,null,null,null,null,null,null,null,null,null,{"$f":"COUNTA(Octobre[[#This Row],[1]:[31]])","v":0}]
[null,"Hamida MAHI",null,null,null,null,null,null,null,null,null,null,null,null,null,null,null,null,null,null,null,null,null,null,null,null,null,null,null,null,null,null,null,{"$f":"COUNTA(Octobre[[#This Row],[1]:[31]])","v":0}]
[null,null,null,null,null,null,null,null,null,null,null,null,null,null,null,null,null,null,null,null,null,null,null,null,null,null,null,null,null,null,null,null,null,{"$f":"COUNTA(Octobre[[#This Row],[1]:[31]])","v":0}]
[null,"Isabelle GIESECKE",null,null,null,null,null,null,null,null,null,null,null,null,null,null,null,null,null,null,null,null,null,null,null,null,null,null,null,null,null,null,null,{"$f":"COUNTA(Octobre[[#This Row],[1]:[31]])","v":0}]
[null,null,null,null,null,null,null,null,null,null,null,null,null,null,null,null,null,null,null,null,null,null,null,null,null,null,null,null,null,null,null,null,null,{"$f":"COUNTA(Octobre[[#This Row],[1]:[31]])","v":0}]
[null,"Sandrine POIRSOIN",null,null,null,null,null,null,null,null,null,null,null,null,null,null,null,null,null,null,null,null,null,null,null,null,null,null,null,null,null,null,null,{"$f":"COUNTA(Octobre[[#This Row],[1]:[31]])","v":0}]
[null,null,null,null,null,null,null,null,null,null,null,null,null,null,null,null,null,null,null,null,null,null,null,null,null,null,null,null,null,null,null,null,null,{"$f":"COUNTA(Octobre[[#This Row],[1]:[31]])","v":0}]
[null,"Florence MASSIE",null,null,null,null,null,null,null,null,null,null,null,null,null,null,null,null,null,null,null,null,null,null,null,null,null,null,null,null,null,null,null,{"$f":"COUNTA(Octobre[[#This Row],[1]:[31]])","v":0}]
[null,null,null,null,null,null,null,null,null,null,null,null,null,null,null,null,null,null,null,null,null,null,null,null,null,null,null,null,null,null,null,null,null,{"$f":"COUNTA(Octobre[[#This Row],[1]:[31]])","v":0}]
[null,"Rym ARAB",null,null,null,null,null,null,null,null,null,null,null,null,null,null,null,null,null,null,null,null,null,null,null,null,null,null,null,null,null,null,null,{"$f":"COUNTA(Octobre[[#This Row],[1]:[31]])","v":0}]
[null,null,null,null,null,null,null,null,null,null,null,null,null,null,null,null,null,null,null,null,null,null,null,null,null,null,null,null,null,null,null,null,null,{"$f":"COUNTA(Octobre[[#This Row],[1]:[31]])","v":0}]
[null,"Benoit DUPRE",null,null,null,null,null,null,null,null,null,null,null,null,null,null,null,null,null,null,null,null,null,null,null,null,null,null,null,null,null,null,null,{"$f":"COUNTA(Octobre[[#This Row],[1]:[31]])","v":0}]
[null,null,null,null,null,null,null,null,null,null,null,null,null,null,null,null,null,null,null,null,null,null,null,null,null,null,null,null,null,null,null,null,null,{"$f":"COUNTA(Octobre[[#This Row],[1]:[31]])","v":0}]
[null,"Bénédicte REBAGLIATO",null,null,null,null,null,null,null,null,null,null,null,null,null,null,null,null,null,null,null,null,null,null,null,null,null,null,null,null,null,null,null,{"$f":"COUNTA(Octobre[[#This Row],[1]:[31]])","v":0}]
[null,null,null,null,null,null,null,null,null,null,null,null,null,null,null,null,null,null,null,null,null,null,null,null,null,null,null,null,null,null,null,null,null,{"$f":"COUNTA(Octobre[[#This Row],[1]:[31]])","v":0}]
[null,"Eliott ARNOLD",null,null,null,null,null,null,null,null,null,null,null,null,null,null,null,null,null,null,null,null,null,null,null,null,null,null,null,null,null,null,null,{"$f":"COUNTA(Octobre[[#This Row],[1]:[31]])","v":0}]
[null,null,null,null,null,null,null,null,null,null,null,null,null,null,null,null,null,null,null,null,null,null,null,null,null,null,null,null,null,null,null,null,null,{"$f":"COUNTA(Octobre[[#This Row],[1]:[31]])","v":0}]
[null,"Vincent DEBENNE",null,null,null,null,null,null,null,null,null,null,null,null,null,null,null,null,null,null,null,null,null,null,null,null,null,null,null,null,null,null,null,{"$f":"COUNTA(Octobre[[#This Row],[1]:[31]])","v":0}]
[null,null,null,null,null,null,null,null,null,null,null,null,null,null,null,null,null,null,null,null,null,null,null,null,null,null,null,null,null,null,null,null,null,{"$f":"COUNTA(Octobre[[#This Row],[1]:[31]])","v":0}]
[null,"Céline GEOFFROY",null,null,null,null,null,null,null,null,null,null,null,null,null,null,null,null,null,null,null,null,null,null,null,null,null,null,null,null,null,null,null,{"$f":"COUNTA(Octobre[[#This Row],[1]:[31]])","v":0}]
[null,null,null,null,null,null,null,null,null,null,null,null,null,null,null,null,null,null,null,null,null,null,null,null,null,null,null,null,null,null,null,null,null,{"$f":"COUNTA(Octobre[[#This Row],[1]:[31]])","v":0}]
[null,null,null,null,null,null,null,null,null,null,null,null,null,null,null,null,null,null,null,null,null,null,null,null,null,null,null,null,null,null,null,null,null,{"$f":"COUNTA(Octobre[[#This Row],[1]:[31]])","v":0}]
[null,null,null,null,null,null,null,null,null,null,null,null,null,null,null,null,null,null,null,null,null,null,null,null,null,null,null,null,null,null,null,null,null,{"$f":"COUNTA(Octobre[[#This Row],[1]:[31]])","v":0}]
[null,null,null,null,null,null,null,null,null,null,null,null,null,null,null,null,null,null,null,null,null,null,null,null,null,null,null,null,null,null,null,null,null,{"$f":"COUNTA(Octobre[[#This Row],[1]:[31]])","v":0}]
[null,null,null,null,null,null,null,null,null,null,null,null,null,null,null,null,null,null,null,null,null,null,null,null,null,null,null,null,null,null,null,null,null,{"$f":"COUNTA(Octobre[[#This Row],[1]:[31]])","v":0}]
[null,null,null,null,null,null,null,null,null,null,null,null,null,null,null,null,null,null,null,null,null,null,null,null,null,null,null,null,null,null,null,null,null,{"$f":"COUNTA(Octobre[[#This Row],[1]:[31]])","v":0}]
[null,null,null,null,null,null,null,null,null,null,null,null,null,null,null,null,null,null,null,null,null,null,null,null,null,null,null,null,null,null,null,null,null,{"$f":"COUNTA(Octobre[[#This Row],[1]:[31]])","v":0}]
[null,null,null,null,null,null,null,null,null,null,null,null,null,null,null,null,null,null,null,null,null,null,null,null,null,null,null,null,null,null,null,null,null,{"$f":"COUNTA(Octobre[[#This Row],[1]:[31]])","v":0}]
[null,null,null,null,null,null,null,null,null,null,null,null,null,null,null,null,null,null,null,null,null,null,null,null,null,null,null,null,null,null,null,null,null,{"$f":"COUNTA(Octobre[[#This Row],[1]:[31]])","v":0}]
[null,null,null,null,null,null,null,null,null,null,null,null,null,null,null,null,null,null,null,null,null,null,null,null,null,null,null,null,null,null,null,null,null,{"$f":"COUNTA(Octobre[[#This Row],[1]:[31]])","v":0}]
[null,null,null,null,null,null,null,null,null,null,null,null,null,null,null,null,null,null,null,null,null,null,null,null,null,null,null,null,null,null,null,null,null,{"$f":"COUNTA(Octobre[[#This Row],[1]:[31]])","v":0}]
[null,{"$f":"NomMois&\" Total\"","v":"Octobre Total"},{"$f":"SUBTOTAL(103,Octobre[1])","v":0},{"$f":"SUBTOTAL(103,Octobre[2])","v":0},{"$f":"SUBTOTAL(103,Octobre[3])","v":0},{"$f":"SUBTOTAL(103,Octobre[4])","v":0},{"$f":"SUBTOTAL(103,Octobre[5])","v":0},{"$f":"SUBTOTAL(103,Octobre[6])","v":0},{"$f":"SUBTOTAL(103,Octobre[7])","v":0},{"$f":"SUBTOTAL(103,Octobre[8])","v":0},{"$f":"SUBTOTAL(103,Octobre[9])","v":0},{"$f":"SUBTOTAL(103,Octobre[10])","v":0},{"$f":"SUBTOTAL(103,Octobre[11])","v":0},{"$f":"SUBTOTAL(103,Octobre[12])","v":0},{"$f":"SUBTOTAL(103,Octobre[13])","v":0},{"$f":"SUBTOTAL(103,Octobre[14])","v":0},{"$f":"SUBTOTAL(103,Octobre[15])","v":0},{"$f":"SUBTOTAL(103,Octobre[16])","v":0},{"$f":"SUBTOTAL(103,Octobre[17])","v":0},{"$f":"SUBTOTAL(103,Octobre[18])","v":0},{"$f":"SUBTOTAL(103,Octobre[19])","v":0},{"$f":"SUBTOTAL(103,Octobre[20])","v":0},{"$f":"SUBTOTAL(103,Octobre[21])","v":0},{"$f":"SUBTOTAL(103,Octobre[22])","v":0},{"$f":"SUBTOTAL(103,Octobre[23])","v":0},{"$f":"SUBTOTAL(103,Octobre[24])","v":0},{"$f":"SUBTOTAL(103,Octobre[25])","v":0},{"$f":"SUBTOTAL(103,Octobre[26])","v":0},{"$f":"SUBTOTAL(103,Octobre[27])","v":0},{"$f":"SUBTOTAL(103,Octobre[28])","v":0},{"$f":"SUBTOTAL(103,Octobre[29])","v":0},{"$f":"SUBTOTAL(109,Octobre[30])","v":0},{"$f":"SUBTOTAL(109,Octobre[31])","v":0},{"$f":"SUBTOTAL(109,Octobre[Total des jours])","v":0}]

{"sheet":"Novembre","index":10,"n_rows":53,"n_cols":34,"rows_kept":53,"cut":false,"hidden":false,"merged":[[5,2,5,32]]}
[null,"Calendrier des absences des employés"]
[null,"Novembre"]
[]
[null,"Clé de motif d’absence","C","Congé",null,"P","Privé","M","Maladie","T","Test","ESE","Entretien ",null,"R","Réunion",null,"TT","Télétravail",null,"F","Forum",null,"TT"]
[]
[null,null,"Dates d’absence",null,null,null,null,null,null,null,null,null,null,null,null,null,null,null,null,null,null,null,null,null,null,null,null,null,null,null,null,null,null,{"$f":"CalendarYear","v":2024}]
[null,null,{"$f":"TEXT(WEEKDAY(DATE(CalendarYear,11,1),1),\"jjj\")","v":"ven"},{"$f":"TEXT(WEEKDAY(DATE(CalendarYear,11,2),1),\"jjj\")","v":"sam"},{"$f":"TEXT(WEEKDAY(DATE(CalendarYear,11,3),1),\"jjj\")","v":"dim"},{"$f":"TEXT(WEEKDAY(DATE(CalendarYear,11,4),1),\"jjj\")","v":"lun"},{"$f":"TEXT(WEEKDAY(DATE(CalendarYear,11,5),1),\"jjj\")","v":"mar"},{"$f":"TEXT(WEEKDAY(DATE(CalendarYear,11,6),1),\"jjj\")","v":"mer"},{"$f":"TEXT(WEEKDAY(DATE(CalendarYear,11,7),1),\"jjj\")","v":"jeu"},{"$f":"TEXT(WEEKDAY(DATE(CalendarYear,11,8),1),\"jjj\")","v":"ven"},{"$f":"TEXT(WEEKDAY(DATE(CalendarYear,11,9),1),\"jjj\")","v":"sam"},{"$f":"TEXT(WEEKDAY(DATE(CalendarYear,11,10),1),\"jjj\")","v":"dim"},{"$f":"TEXT(WEEKDAY(DATE(CalendarYear,11,11),1),\"jjj\")","v":"lun"},{"$f":"TEXT(WEEKDAY(DATE(CalendarYear,11,12),1),\"jjj\")","v":"mar"},{"$f":"TEXT(WEEKDAY(DATE(CalendarYear,11,13),1),\"jjj\")","v":"mer"},{"$f":"TEXT(WEEKDAY(DATE(CalendarYear,11,14),1),\"jjj\")","v":"jeu"},{"$f":"TEXT(WEEKDAY(DATE(CalendarYear,11,15),1),\"jjj\")","v":"ven"},{"$f":"TEXT(WEEKDAY(DATE(CalendarYear,11,16),1),\"jjj\")","v":"sam"},{"$f":"TEXT(WEEKDAY(DATE(CalendarYear,11,17),1),\"jjj\")","v":"dim"},{"$f":"TEXT(WEEKDAY(DATE(CalendarYear,11,18),1),\"jjj\")","v":"lun"},{"$f":"TEXT(WEEKDAY(DATE(CalendarYear,11,19),1),\"jjj\")","v":"mar"},{"$f":"TEXT(WEEKDAY(DATE(CalendarYear,11,20),1),\"jjj\")","v":"mer"},{"$f":"TEXT(WEEKDAY(DATE(CalendarYear,11,21),1),\"jjj\")","v":"jeu"},{"$f":"TEXT(WEEKDAY(DATE(CalendarYear,11,22),1),\"jjj\")","v":"ven"},{"$f":"TEXT(WEEKDAY(DATE(CalendarYear,11,23),1),\"jjj\")","v":"sam"},{"$f":"TEXT(WEEKDAY(DATE(CalendarYear,11,24),1),\"jjj\")","v":"dim"},{"$f":"TEXT(WEEKDAY(DATE(CalendarYear,11,25),1),\"jjj\")","v":"lun"},{"$f":"TEXT(WEEKDAY(DATE(CalendarYear,11,26),1),\"jjj\")","v":"mar"},{"$f":"TEXT(WEEKDAY(DATE(CalendarYear,11,27),1),\"jjj\")","v":"mer"},{"$f":"TEXT(WEEKDAY(DATE(CalendarYear,11,28),1),\"jjj\")","v":"jeu"},{"$f":"TEXT(WEEKDAY(DATE(CalendarYear,11,29),1),\"jjj\")","v":"ven"},{"$f":"TEXT(WEEKDAY(DATE(CalendarYear,11,30),1),\"jjj\")","v":"sam"}]
[null,"Nom de l’employé","1","2","3","4","5","6","7","8","9","10","11","12","13","14","15","16","17","18","19","20","21","22","23","24","25","26","27","28","29","30"," ","Total des jours"]
[null,"Laure PALACIN",null,null,null,null,null,null,null,null,null,null,null,null,null,null,null,null,null,null,null,null,null,null,null,null,null,null,null,null,null,null,null,{"$f":"COUNTA(Novembre[[#This Row],[1]:[ ]])","v":0}]
[null,null,null,null,null,null,null,null,null,null,null,null,null,null,null,null,null,null,null,null,null,null,null,null,null,null,null,null,null,null,null,null,null,{"$f":"COUNTA(Novembre[[#This Row],[1]:[ ]])","v":0}]
[null,"Sandrine CAFAFA",null,null,null,null,null,null,null,null,null,null,null,null,null,null,null,null,null,null,null,null,null,null,null,null,null,null,null,null,null,null,null,{"$f":"COUNTA(Novembre[[#This Row],[1]:[ ]])","v":0}]
[null,null,null,null,null,null,null,null,null,null,null,null,null,null,null,null,null,null,null,null,null,null,null,null,null,null,null,null,null,null,null,null,null,{"$f":"COUNTA(Novembre[[#This Row],[1]:[ ]])","v":0}]
[null,"Anifa BOUKHRISS",null,null,null,null,null,null,null,null,null,null,null,null,null,null,null,null,null,null,null,null,null,null,null,null,null,null,null,null,null,null,null,{"$f":"COUNTA(Novembre[[#This Row],[1]:[ ]])","v":0}]
[null,null,null,null,null,null,null,null,null,null,null,null,null,null,null,null,null,null,null,null,null,null,null,null,null,null,null,null,null,null,null,null,null,{"$f":"COUNTA(Novembre[[#This Row],[1]:[ ]])","v":0}]
[null,"Valérie BONVEL",null,null,null,null,null,null,null,null,null,null,null,null,null,null,null,null,null,null,null,null,null,null,null,null,null,null,null,null,null,null,null,{"$f":"COUNTA(Novembre[[#This Row],[1]:[ ]])","v":0}]
[null,null,null,null,null,null,null,null,null,null,null,null,null,null,null,null,null,null,null,null,null,null,null,null,null,null,null,null,null,null,null,null,null,{"$f":"COUNTA(Novembre[[#This Row],[1]:[ ]])","v":0}]
[null,"Alexandre KIOSSES",null,null,null,null,null,null,null,"tt",null,null,null,null,null,null,null,null,null,null,null,null,null,null,null,null,null,null,null,null,null,null,null,{"$f":"COUNTA(Novembre[[#This Row],[1]:[ ]])","v":1}]
[null,null,null,null,null,null,null,null,null,null,null,null,null,null,null,null,null,null,null,null,null,null,null,null,null,null,null,null,null,null,null,null,null,{"$f":"COUNTA(Novembre[[#This Row],[1]:[ ]])","v":0}]
[null,"Isabelle SANTERRE",null,null,null,null,null,null,null,null,null,null,null,null,null,null,null,null,null,null,null,null,null,null,null,null,null,null,null,null,null,null,null,{"$f":"COUNTA(Novembre[[#This Row],[1]:[ ]])","v":0}]
[null,null,null,null,null,null,null,null,null,null,null,null,null,null,null,null,null,null,null,null,null,"tt",null,null,null,null,null,null,null,null,null,null,null,{"$f":"COUNTA(Novembre[[#This Row],[1]:[ ]])","v":1}]
[null,"Madeline VENTURA",null,null,null,null,null,null,null,null,null,null,null,null,null,null,null,null,null,null,null,null,null,null,null,null,null,null,null,null,null,null,null,{"$f":"COUNTA(Novembre[[#This Row],[1]:[ ]])","v":0}]
[null,null,null,null,null,null,null,null,null,null,null,null,null,null,null,null,null,null,null,null,null,null,null,null,null,null,null,null,null,null,null,null,null,{"$f":"COUNTA(Novembre[[#This Row],[1]:[ ]])","v":0}]
[null,"Hamida MAHI",null,null,null,null,null,null,null,null,null,null,null,null,null,null,null,null,null,null,null,null,null,null,null,null,null,null,null,null,null,null,null,{"$f":"COUNTA(Novembre[[#This Row],[1]:[ ]])","v":0}]
[null,null,null,null,null,null,null,null,null,null,null,null,null,null,null,null,null,null,null,null,null,null,null,null,null,null,null,null,null,null,null,null,null,{"$f":"COUNTA(Novembre[[#This Row],[1]:[ ]])","v":0}]
[null,"Isabelle GIESECKE",null,null,null,null,null,null,null,null,null,null,null,null,null,null,null,null,null,null,null,null,null,null,null,null,null,null,null,null,null,null,null,{"$f":"COUNTA(Novembre[[#This Row],[1]:[ ]])","v":0}]
[null,null,null,null,null,null,null,null,null,null,null,null,null,null,null,null,null,null,null,null,null,null,null,null,null,null,null,null,null,null,null,null,null,{"$f":"COUNTA(Novembre[[#This Row],[1]:[ ]])","v":0}]
[null,"Sandrine POIRSOIN",null,null,null,null,null,null,null,null,null,null,null,null,null,null,null,null,null,null,null,null,null,null,null,null,null,null,null,null,null,null,null,{"$f":"COUNTA(Novembre[[#This Row],[1]:[ ]])","v":0}]
[null,null,null,null,null,null,null,null,null,null,null,null,null,null,null,null,null,null,null,null,null,null,null,null,null,null,null,null,null,null,null,null,null,{"$f":"COUNTA(Novembre[[#This Row],[1]:[ ]])","v":0}]
[null,"Florence MASSIE",null,null,null,null,null,null,null,null,null,null,null,null,null,null,null,null,null,null,null,null,null,null,null,null,null,null,null,null,null,null,null,{"$f":"COUNTA(Novembre[[#This Row],[1]:[ ]])","v":0}]
[null,null,null,null,null,null,null,null,null,null,null,null,null,null,null,null,null,null,null,null,null,null,null,null,null,null,null,null,null,null,null,null,null,{"$f":"COUNTA(Novembre[[#This Row],[1]:[ ]])","v":0}]
[null,"Rym ARAB",null,null,null,null,null,null,null,null,null,null,null,null,null,null,null,null,null,null,null,null,null,null,null,null,null,null,null,null,null,null,null,{"$f":"COUNTA(Novembre[[#This Row],[1]:[ ]])","v":0}]
[null,null,null,null,null,null,null,null,null,null,null,null,null,null,null,null,null,null,null,null,null,null,null,null,null,null,null,null,null,null,null,null,null,{"$f":"COUNTA(Novembre[[#This Row],[1]:[ ]])","v":0}]
[null,"Benoit DUPRE",null,null,null,null,null,null,null,null,null,null,null,null,null,null,null,null,null,null,null,null,null,null,null,null,null,null,null,null,null,null,null,{"$f":"COUNTA(Novembre[[#This Row],[1]:[ ]])","v":0}]
[null,null,null,null,null,null,null,null,null,null,null,null,null,null,null,null,null,null,null,null,null,null,null,null,null,null,null,null,null,null,null,null,null,{"$f":"COUNTA(Novembre[[#This Row],[1]:[ ]])","v":0}]
[null,"Bénédicte REBAGLIATO",null,null,null,null,null,null,null,null,null,null,null,null,null,null,null,null,null,null,null,null,null,null,null,null,null,null,null,null,null,null,null,{"$f":"COUNTA(Novembre[[#This Row],[1]:[ ]])","v":0}]
[null,null,null,null,null,null,null,null,null,null,null,null,null,null,null,null,null,null,null,null,null,null,null,null,null,null,null,null,null,null,null,null,null,{"$f":"COUNTA(Novembre[[#This Row],[1]:[ ]])","v":0}]
[null,"Eliott ARNOLD",null,null,null,null,null,null,null,null,null,null,null,null,null,null,null,null,null,null,null,null,null,null,null,null,null,null,null,null,null,null,null,{"$f":"COUNTA(Novembre[[#This Row],[1]:[ ]])","v":0}]
[null,null,null,null,null,null,null,null,null,null,null,null,null,null,null,null,null,null,null,null,null,null,null,null,null,null,null,null,null,null,null,null,null,{"$f":"COUNTA(Novembre[[#This Row],[1]:[ ]])","v":0}]
[null,"Vincent DEBENNE",null,null,null,null,null,null,null,null,null,null,null,null,null,null,null,null,null,null,null,null,null,null,null,null,null,null,null,null,null,null,null,{"$f":"COUNTA(Novembre[[#This Row],[1]:[ ]])","v":0}]
[null,null,null,null,null,null,null,null,null,null,null,null,null,null,null,null,null,null,null,null,null,null,null,null,null,null,null,null,null,null,null,null,null,{"$f":"COUNTA(Novembre[[#This Row],[1]:[ ]])","v":0}]
[null,"Céline GEOFFROY",null,null,null,null,null,null,null,null,null,null,null,null,null,null,null,null,null,null,null,null,null,null,null,null,null,null,null,null,null,null,null,{"$f":"COUNTA(Novembre[[#This Row],[1]:[ ]])","v":0}]
[null,null,null,null,null,null,null,null,null,null,null,null,null,null,null,null,null,null,null,null,null,null,null,null,null,null,null,null,null,null,null,null,null,{"$f":"COUNTA(Novembre[[#This Row],[1]:[ ]])","v":0}]
[null,null,null,null,null,null,null,null,null,null,null,null,null,null,null,null,null,null,null,null,null,null,null,null,null,null,null,null,null,null,null,null,null,{"$f":"COUNTA(Novembre[[#This Row],[1]:[ ]])","v":0}]
[null,null,null,null,null,null,null,null,null,null,null,null,null,null,null,null,null,null,null,null,null,null,null,null,null,null,null,null,null,null,null,null,null,{"$f":"COUNTA(Novembre[[#This Row],[1]:[ ]])","v":0}]
[null,null,null,null,null,null,null,null,null,null,null,null,null,null,null,null,null,null,null,null,null,null,null,null,null,null,null,null,null,null,null,null,null,{"$f":"COUNTA(Novembre[[#This Row],[1]:[ ]])","v":0}]
[null,null,null,null,null,null,null,null,null,null,null,null,null,null,null,null,null,null,null,null,null,null,null,null,null,null,null,null,null,null,null,null,null,{"$f":"COUNTA(Novembre[[#This Row],[1]:[ ]])","v":0}]
[null,null,null,null,null,null,null,null,null,null,null,null,null,null,null,null,null,null,null,null,null,null,null,null,null,null,null,null,null,null,null,null,null,{"$f":"COUNTA(Novembre[[#This Row],[1]:[ ]])","v":0}]
[null,null,null,null,null,null,null,null,null,null,null,null,null,null,null,null,null,null,null,null,null,null,null,null,null,null,null,null,null,null,null,null,null,{"$f":"COUNTA(Novembre[[#This Row],[1]:[ ]])","v":0}]
[null,null,null,null,null,null,null,null,null,null,null,null,null,null,null,null,null,null,null,null,null,null,null,null,null,null,null,null,null,null,null,null,null,{"$f":"COUNTA(Novembre[[#This Row],[1]:[ ]])","v":0}]
[null,null,null,null,null,null,null,null,null,null,null,null,null,null,null,null,null,null,null,null,null,null,null,null,null,null,null,null,null,null,null,null,null,{"$f":"COUNTA(Novembre[[#This Row],[1]:[ ]])","v":0}]
[null,null,null,null,null,null,null,null,null,null,null,null,null,null,null,null,null,null,null,null,null,null,null,null,null,null,null,null,null,null,null,null,null,{"$f":"COUNTA(Novembre[[#This Row],[1]:[ ]])","v":0}]
[null,null,null,null,null,null,null,null,null,null,null,null,null,null,null,null,null,null,null,null,null,null,null,null,null,null,null,null,null,null,null,null,null,{"$f":"COUNTA(Novembre[[#This Row],[1]:[ ]])","v":0}]
[null,{"$f":"NomMois&\" Total\"","v":"Novembre Total"},{"$f":"SUBTOTAL(103,Novembre[1])","v":0},{"$f":"SUBTOTAL(103,Novembre[2])","v":0},{"$f":"SUBTOTAL(103,Novembre[3])","v":0},{"$f":"SUBTOTAL(103,Novembre[4])","v":0},{"$f":"SUBTOTAL(103,Novembre[5])","v":0},{"$f":"SUBTOTAL(103,Novembre[6])","v":0},{"$f":"SUBTOTAL(103,Novembre[7])","v":0},{"$f":"SUBTOTAL(103,Novembre[8])","v":1},{"$f":"SUBTOTAL(103,Novembre[9])","v":0},{"$f":"SUBTOTAL(103,Novembre[10])","v":0},{"$f":"SUBTOTAL(103,Novembre[11])","v":0},{"$f":"SUBTOTAL(103,Novembre[12])","v":0},{"$f":"SUBTOTAL(103,Novembre[13])","v":0},{"$f":"SUBTOTAL(103,Novembre[14])","v":0},{"$f":"SUBTOTAL(103,Novembre[15])","v":0},{"$f":"SUBTOTAL(103,Novembre[16])","v":0},{"$f":"SUBTOTAL(103,Novembre[17])","v":0},{"$f":"SUBTOTAL(103,Novembre[18])","v":0},{"$f":"SUBTOTAL(103,Novembre[19])","v":0},{"$f":"SUBTOTAL(103,Novembre[20])","v":1},{"$f":"SUBTOTAL(103,Novembre[21])","v":0},{"$f":"SUBTOTAL(103,Novembre[22])","v":0},{"$f":"SUBTOTAL(103,Novembre[23])","v":0},{"$f":"SUBTOTAL(103,Novembre[24])","v":0},{"$f":"SUBTOTAL(103,Novembre[25])","v":0},{"$f":"SUBTOTAL(103,Novembre[26])","v":0},{"$f":"SUBTOTAL(103,Novembre[27])","v":0},{"$f":"SUBTOTAL(103,Novembre[28])","v":0},{"$f":"SUBTOTAL(103,Novembre[29])","v":0},{"$f":"SUBTOTAL(109,Novembre[30])","v":0},{"$f":"SUBTOTAL(109,Novembre[[ ]])","v":0},{"$f":"SUBTOTAL(109,Novembre[Total des jours])","v":2}]

{"sheet":"Décembre","index":11,"n_rows":53,"n_cols":34,"rows_kept":53,"cut":false,"hidden":false,"merged":[[5,2,5,32]]}
[null,"Calendrier des absences des employés"]
[null,"Décembre"]
[]
[null,"Clé de motif d’absence","C","Congé",null,"P","Privé","M","Maladie","T","Test","ESE","Entretien ",null,"R","Réunion",null,"TT","Télétravail",null,"F","Forum",null,"TT"]
[]
[null,null,"Dates d’absence",null,null,null,null,null,null,null,null,null,null,null,null,null,null,null,null,null,null,null,null,null,null,null,null,null,null,null,null,null,null,2024]
[null,null,{"$f":"TEXT(WEEKDAY(DATE(CalendarYear,12,1),1),\"jjj\")","v":"dim"},{"$f":"TEXT(WEEKDAY(DATE(CalendarYear,12,2),1),\"jjj\")","v":"lun"},{"$f":"TEXT(WEEKDAY(DATE(CalendarYear,12,3),1),\"jjj\")","v":"mar"},{"$f":"TEXT(WEEKDAY(DATE(CalendarYear,12,4),1),\"jjj\")","v":"mer"},{"$f":"TEXT(WEEKDAY(DATE(CalendarYear,12,5),1),\"jjj\")","v":"jeu"},{"$f":"TEXT(WEEKDAY(DATE(CalendarYear,12,6),1),\"jjj\")","v":"ven"},{"$f":"TEXT(WEEKDAY(DATE(CalendarYear,12,7),1),\"jjj\")","v":"sam"},{"$f":"TEXT(WEEKDAY(DATE(CalendarYear,12,8),1),\"jjj\")","v":"dim"},{"$f":"TEXT(WEEKDAY(DATE(CalendarYear,12,9),1),\"jjj\")","v":"lun"},{"$f":"TEXT(WEEKDAY(DATE(CalendarYear,12,10),1),\"jjj\")","v":"mar"},{"$f":"TEXT(WEEKDAY(DATE(CalendarYear,12,11),1),\"jjj\")","v":"mer"},{"$f":"TEXT(WEEKDAY(DATE(CalendarYear,12,12),1),\"jjj\")","v":"jeu"},{"$f":"TEXT(WEEKDAY(DATE(CalendarYear,12,13),1),\"jjj\")","v":"ven"},{"$f":"TEXT(WEEKDAY(DATE(CalendarYear,12,14),1),\"jjj\")","v":"sam"},{"$f":"TEXT(WEEKDAY(DATE(CalendarYear,12,15),1),\"jjj\")","v":"dim"},{"$f":"TEXT(WEEKDAY(DATE(CalendarYear,12,16),1),\"jjj\")","v":"lun"},{"$f":"TEXT(WEEKDAY(DATE(CalendarYear,12,17),1),\"jjj\")","v":"mar"},{"$f":"TEXT(WEEKDAY(DATE(CalendarYear,12,18),1),\"jjj\")","v":"mer"},{"$f":"TEXT(WEEKDAY(DATE(CalendarYear,12,19),1),\"jjj\")","v":"jeu"},{"$f":"TEXT(WEEKDAY(DATE(CalendarYear,12,20),1),\"jjj\")","v":"ven"},{"$f":"TEXT(WEEKDAY(DATE(CalendarYear,12,21),1),\"jjj\")","v":"sam"},{"$f":"TEXT(WEEKDAY(DATE(CalendarYear,12,22),1),\"jjj\")","v":"dim"},{"$f":"TEXT(WEEKDAY(DATE(CalendarYear,12,23),1),\"jjj\")","v":"lun"},{"$f":"TEXT(WEEKDAY(DATE(CalendarYear,12,24),1),\"jjj\")","v":"mar"},{"$f":"TEXT(WEEKDAY(DATE(CalendarYear,12,25),1),\"jjj\")","v":"mer"},{"$f":"TEXT(WEEKDAY(DATE(CalendarYear,12,26),1),\"jjj\")","v":"jeu"},{"$f":"TEXT(WEEKDAY(DATE(CalendarYear,12,27),1),\"jjj\")","v":"ven"},{"$f":"TEXT(WEEKDAY(DATE(CalendarYear,12,28),1),\"jjj\")","v":"sam"},{"$f":"TEXT(WEEKDAY(DATE(CalendarYear,12,29),1),\"jjj\")","v":"dim"},{"$f":"TEXT(WEEKDAY(DATE(CalendarYear,12,30),1),\"jjj\")","v":"lun"},{"$f":"TEXT(WEEKDAY(DATE(CalendarYear,12,31),1),\"jjj\")","v":"mar"}]
[null,"Nom de l’employé","1","2","3","4","5","6","7","8","9","10","11","12","13","14","15","16","17","18","19","20","21","22","23","24","25","26","27","28","29","30","31","Total des jours"]
[null,"Laure PALACIN",null,null,null,null,null,null,null,null,null,null,null,null,null,null,null,null,null,null,null,null,null,null,null,null,null,null,null,null,null,null,null,{"$f":"COUNTA(Décembre[[#This Row],[1]:[31]])","v":0}]
[null,null,null,null,null,null,null,null,null,null,null,null,null,null,"T CDR Ψ",null,null,null,null,null,null,null,null,null,null,null,null,null,null,null,null,null,null,{"$f":"COUNTA(Décembre[[#This Row],[1]:[31]])","v":1}]
[null,"Sandrine CAFAFA",null,null,null,null,null,null,null,null,null,null,null,null,null,null,null,null,null,null,null,null,null,null,null,null,null,null,null,null,null,null,null,{"$f":"COUNTA(Décembre[[#This Row],[1]:[31]])","v":0}]
[null,null,null,null,null,null,null,null,null,null,"ESE",null,null,"R",null,null,null,null,null,null,null,null,null,null,null,null,null,null,null,null,null,null,null,{"$f":"COUNTA(Décembre[[#This Row],[1]:[31]])","v":2}]
[null,"Anifa BOUKHRISS",null,null,null,null,null,null,null,null,null,null,null,null,null,null,null,null,null,null,null,null,null,null,null,null,null,null,null,null,null,null,null,{"$f":"COUNTA(Décembre[[#This Row],[1]:[31]])","v":0}]
[null,null,null,null,null,null,null,null,null,null,null,null,null,"T RFN Ψ",null,null,null,null,null,null,null,null,null,null,null,null,null,null,null,null,null,null,null,{"$f":"COUNTA(Décembre[[#This Row],[1]:[31]])","v":1}]
[null,"Valérie BONVEL",null,null,null,null,null,null,null,null,null,null,null,null,null,null,null,null,null,null,null,null,null,null,null,null,null,null,null,null,null,null,null,{"$f":"COUNTA(Décembre[[#This Row],[1]:[31]])","v":0}]
[null,null,null,null,null,null,null,null,null,null,null,null,null,"T AMP",null,null,null,null,null,null,null,null,null,null,null,null,null,null,null,null,null,null,null,{"$f":"COUNTA(Décembre[[#This Row],[1]:[31]])","v":1}]
[null,"Alexandre KIOSSES",null,null,null,null,null,null,null,null,null,null,null,null,null,null,null,null,null,null,null,null,null,null,null,null,null,null,null,null,null,null,null,{"$f":"COUNTA(Décembre[[#This Row],[1]:[31]])","v":0}]
[null,null,null,null,null,null,null,null,null,null,null,null,null,null,null,null,null,null,null,null,null,null,null,null,null,null,null,null,null,null,null,null,null,{"$f":"COUNTA(Décembre[[#This Row],[1]:[31]])","v":0}]
[null,"Isabelle SANTERRE",null,null,null,null,null,null,null,null,null,null,null,null,null,null,null,null,null,null,null,null,null,null,null,null,null,null,null,null,null,null,null,{"$f":"COUNTA(Décembre[[#This Row],[1]:[31]])","v":0}]
[null,null,null,null,null,null,null,null,null,null,null,null,null,null,null,null,null,null,null,null,null,null,null,null,null,null,null,null,null,null,null,null,null,{"$f":"COUNTA(Décembre[[#This Row],[1]:[31]])","v":0}]
[null,"Madeline VENTURA",null,null,null,null,null,null,null,null,null,null,null,null,null,null,null,null,null,null,null,null,null,null,null,null,null,null,null,null,null,null,null,{"$f":"COUNTA(Décembre[[#This Row],[1]:[31]])","v":0}]
[null,null,null,null,null,null,null,null,null,null,null,null,null,null,null,null,null,null,null,null,null,null,null,null,null,null,null,null,null,null,null,null,null,{"$f":"COUNTA(Décembre[[#This Row],[1]:[31]])","v":0}]
[null,"Hamida MAHI",null,null,null,null,null,null,null,null,null,null,null,null,null,null,null,null,null,null,null,null,null,null,null,null,null,null,null,null,null,null,null,{"$f":"COUNTA(Décembre[[#This Row],[1]:[31]])","v":0}]
[null,null,null,null,null,null,null,null,null,null,null,null,null,null,null,null,null,null,null,null,null,null,null,null,null,null,null,null,null,null,null,null,null,{"$f":"COUNTA(Décembre[[#This Row],[1]:[31]])","v":0}]
[null,"Isabelle GIESECKE",null,null,null,null,null,null,null,null,null,null,null,null,null,null,null,null,null,null,null,null,null,null,null,null,null,null,null,null,null,null,null,{"$f":"COUNTA(Décembre[[#This Row],[1]:[31]])","v":0}]
[null,null,null,null,null,null,null,null,null,null,null,null,null,null,null,null,null,null,null,null,null,null,null,null,null,null,null,null,null,null,null,null,null,{"$f":"COUNTA(Décembre[[#This Row],[1]:[31]])","v":0}]
[null,"Sandrine POIRSOIN",null,null,null,null,null,null,null,null,null,null,null,null,null,null,null,null,null,null,null,null,null,null,null,null,null,null,null,null,null,null,null,{"$f":"COUNTA(Décembre[[#This Row],[1]:[31]])","v":0}]
[null,null,null,null,null,null,null,null,null,null,null,null,null,null,null,null,null,null,null,null,null,null,null,null,null,null,null,null,null,null,null,null,null,{"$f":"COUNTA(Décembre[[#This Row],[1]:[31]])","v":0}]
[null,"Florence MASSIE",null,null,null,null,null,null,null,null,null,null,null,null,null,null,null,null,null,null,null,null,null,null,null,null,null,null,null,null,null,null,null,{"$f":"COUNTA(Décembre[[#This Row],[1]:[31]])","v":0}]
[null,null,null,null,null,null,null,null,null,null,null,null,null,null,null,null,null,null,null,null,null,null,null,null,null,null,null,null,null,null,null,null,null,{"$f":"COUNTA(Décembre[[#This Row],[1]:[31]])","v":0}]
[null,"Rym ARAB",null,null,null,null,null,null,null,null,null,null,null,null,null,null,null,null,null,null,null,null,null,null,null,null,null,null,null,null,null,null,null,{"$f":"COUNTA(Décembre[[#This Row],[1]:[31]])","v":0}]
[null,null,null,null,null,null,null,null,null,null,null,null,null,null,null,null,null,null,null,null,null,null,null,null,null,null,null,null,null,null,null,null,null,{"$f":"COUNTA(Décembre[[#This Row],[1]:[31]])","v":0}]
[null,"Benoit DUPRE",null,null,null,null,null,null,null,null,null,null,null,null,null,null,null,null,null,null,null,null,null,null,null,null,null,null,null,null,null,null,null,{"$f":"COUNTA(Décembre[[#This Row],[1]:[31]])","v":0}]
[null,null,null,null,null,null,null,null,null,null,null,null,null,null,null,null,null,null,null,null,null,null,null,null,null,null,null,null,null,null,null,null,null,{"$f":"COUNTA(Décembre[[#This Row],[1]:[31]])","v":0}]
[null,"Bénédicte REBAGLIATO",null,null,null,null,null,null,null,null,null,null,null,null,null,null,null,null,null,null,null,null,null,null,null,null,null,null,null,null,null,null,null,{"$f":"COUNTA(Décembre[[#This Row],[1]:[31]])","v":0}]
[null,null,null,null,null,null,null,null,null,null,null,null,null,null,null,null,null,null,null,null,null,null,null,null,null,null,null,null,null,null,null,null,null,{"$f":"COUNTA(Décembre[[#This Row],[1]:[31]])","v":0}]
[null,"Eliott ARNOLD",null,null,null,null,null,null,null,null,null,null,null,null,null,null,null,null,null,null,null,null,null,null,null,null,null,null,null,null,null,null,null,{"$f":"COUNTA(Décembre[[#This Row],[1]:[31]])","v":0}]
[null,null,null,null,null,null,null,null,null,null,null,null,null,null,null,null,null,null,null,null,null,null,null,null,null,null,null,null,null,null,null,null,null,{"$f":"COUNTA(Décembre[[#This Row],[1]:[31]])","v":0}]
[null,"Vincent DEBENNE",null,null,null,null,null,null,null,null,null,null,null,null,null,null,null,null,null,null,null,null,null,null,null,null,null,null,null,null,null,null,null,{"$f":"COUNTA(Décembre[[#This Row],[1]:[31]])","v":0}]
[null,null,null,null,null,null,null,null,null,null,null,null,null,null,null,null,null,null,null,null,null,null,null,null,null,null,null,null,null,null,null,null,null,{"$f":"COUNTA(Décembre[[#This Row],[1]:[31]])","v":0}]
[null,"Céline GEOFFROY",null,null,null,null,null,null,null,null,null,null,null,null,null,null,null,null,null,null,null,null,null,null,null,null,null,null,null,null,null,null,null,{"$f":"COUNTA(Décembre[[#This Row],[1]:[31]])","v":0}]
[null,null,null,null,null,null,null,null,null,null,null,null,null,null,null,null,null,null,null,null,null,null,null,null,null,null,null,null,null,null,null,null,null,{"$f":"COUNTA(Décembre[[#This Row],[1]:[31]])","v":0}]
[null,null,null,null,null,null,null,null,null,null,null,null,null,null,null,null,null,null,null,null,null,null,null,null,null,null,null,null,null,null,null,null,null,{"$f":"COUNTA(Décembre[[#This Row],[1]:[31]])","v":0}]
[null,null,null,null,null,null,null,null,null,null,null,null,null,null,null,null,null,null,null,null,null,null,null,null,null,null,null,null,null,null,null,null,null,{"$f":"COUNTA(Décembre[[#This Row],[1]:[31]])","v":0}]
[null,null,null,null,null,null,null,null,null,null,null,null,null,null,null,null,null,null,null,null,null,null,null,null,null,null,null,null,null,null,null,null,null,{"$f":"COUNTA(Décembre[[#This Row],[1]:[31]])","v":0}]
[null,null,null,null,null,null,null,null,null,null,null,null,null,null,null,null,null,null,null,null,null,null,null,null,null,null,null,null,null,null,null,null,null,{"$f":"COUNTA(Décembre[[#This Row],[1]:[31]])","v":0}]
[null,null,null,null,null,null,null,null,null,null,null,null,null,null,null,null,null,null,null,null,null,null,null,null,null,null,null,null,null,null,null,null,null,{"$f":"COUNTA(Décembre[[#This Row],[1]:[31]])","v":0}]
[null,null,null,null,null,null,null,null,null,null,null,null,null,null,null,null,null,null,null,null,null,null,null,null,null,null,null,null,null,null,null,null,null,{"$f":"COUNTA(Décembre[[#This Row],[1]:[31]])","v":0}]
[null,null,null,null,null,null,null,null,null,null,null,null,null,null,null,null,null,null,null,null,null,null,null,null,null,null,null,null,null,null,null,null,null,{"$f":"COUNTA(Décembre[[#This Row],[1]:[31]])","v":0}]
[null,null,null,null,null,null,null,null,null,null,null,null,null,null,null,null,null,null,null,null,null,null,null,null,null,null,null,null,null,null,null,null,null,{"$f":"COUNTA(Décembre[[#This Row],[1]:[31]])","v":0}]
[null,null,null,null,null,null,null,null,null,null,null,null,null,null,null,null,null,null,null,null,null,null,null,null,null,null,null,null,null,null,null,null,null,{"$f":"COUNTA(Décembre[[#This Row],[1]:[31]])","v":0}]
[null,null,null,null,null,null,null,null,null,null,null,null,null,null,null,null,null,null,null,null,null,null,null,null,null,null,null,null,null,null,null,null,null,{"$f":"COUNTA(Décembre[[#This Row],[1]:[31]])","v":0}]
[null,{"$f":"NomMois&\" Total\"","v":"Décembre Total"},{"$f":"SUBTOTAL(103,Décembre[1])","v":0},{"$f":"SUBTOTAL(103,Décembre[2])","v":0},{"$f":"SUBTOTAL(103,Décembre[3])","v":0},{"$f":"SUBTOTAL(103,Décembre[4])","v":0},{"$f":"SUBTOTAL(103,Décembre[5])","v":0},{"$f":"SUBTOTAL(103,Décembre[6])","v":0},{"$f":"SUBTOTAL(103,Décembre[7])","v":0},{"$f":"SUBTOTAL(103,Décembre[8])","v":0},{"$f":"SUBTOTAL(103,Décembre[9])","v":1},{"$f":"SUBTOTAL(103,Décembre[10])","v":0},{"$f":"SUBTOTAL(103,Décembre[11])","v":0},{"$f":"SUBTOTAL(103,Décembre[12])","v":3},{"$f":"SUBTOTAL(103,Décembre[13])","v":1},{"$f":"SUBTOTAL(103,Décembre[14])","v":0},{"$f":"SUBTOTAL(103,Décembre[15])","v":0},{"$f":"SUBTOTAL(103,Décembre[16])","v":0},{"$f":"SUBTOTAL(103,Décembre[17])","v":0},{"$f":"SUBTOTAL(103,Décembre[18])","v":0},{"$f":"SUBTOTAL(103,Décembre[19])","v":0},{"$f":"SUBTOTAL(103,Décembre[20])","v":0},{"$f":"SUBTOTAL(103,Décembre[21])","v":0},{"$f":"SUBTOTAL(103,Décembre[22])","v":0},{"$f":"SUBTOTAL(103,Décembre[23])","v":0},{"$f":"SUBTOTAL(103,Décembre[24])","v":0},{"$f":"SUBTOTAL(103,Décembre[25])","v":0},{"$f":"SUBTOTAL(103,Décembre[26])","v":0},{"$f":"SUBTOTAL(103,Décembre[27])","v":0},{"$f":"SUBTOTAL(103,Décembre[28])","v":0},{"$f":"SUBTOTAL(103,Décembre[29])","v":0},{"$f":"SUBTOTAL(109,Décembre[30])","v":0},{"$f":"SUBTOTAL(109,Décembre[31])","v":0},{"$f":"SUBTOTAL(109,Décembre[Total des jours])","v":5}]

{"sheet":"Noms des salariés","index":12,"n_rows":20,"n_cols":11,"rows_kept":20,"cut":false,"hidden":false,"merged":[]}
[null,"Noms des salariés"]
[]
[null,"Noms des employés",null,null,null,"Mois",null,null,null,"C","Congé"]
[null,"Laure PALACIN",null,null,null,"Janvier",null,null,null,"P","Privé"]
[null,"Sandrine CAFAFA SEC",null,null,null,"Février",null,null,null,"M","Maladie"]
[null,"Anifa BOUKHRISS",null,null,null,"Mars",null,null,null,"T","Test"]
[null,"Valérie BONVEL",null,null,null,"Avril",null,null,null,"ESE","Entretien "]
[null,"Alexandre KIOSSES",null,null,"MP","Mai",null,null,null,"R","Réunion"]
[null,"Isabelle SANTERRE",null,null,null,"Juin",null,null,null,"TT","Télétravail"]
[null,"Madeline VENTURA",null,null,null,"Juillet",null,null,null,"F","Forum"]
[null,"Hamida MAHI",null,null,null,"Août"]
[null,"Isabelle GIESECKE",null,null,null,"Septembre"]
[null,"Sandrine POIRSOIN",null,null,null,"Octobre"]
[null,"Florence MASSIE",null,null,null,"Novembre"]
[null,"Rym ARAB",null,null,null,"Décembre"]
[null,"Benoit DUPRE"]
[null,"Bénédicte REBAGLIATO"]
[null,"Eliott ARNOLD"]
[null,"Vincent DEBENNE"]
[null,"Céline GEOFFROY"]

{"sheet":"LEGENDE","index":13,"n_rows":25,"n_cols":14,"rows_kept":25,"cut":false,"hidden":false,"merged":[[16,11,18,11],[12,11,13,11],[1,4,1,5],[1,7,1,8],[1,10,1,11],[4,11,5,11],[8,11,9,11]]}
[]
[null,null,null,null,"1ER ONGLET",null,null,"2EME ONGLET",null,null,"SALLES TEST"]
[null,null,null,null,null,null,null,null,null,null,null,null,null,"Ψ"]
[]
[null,"C","Congés",null,"T RFN Ψ","Test RFN Ψ",null,"C","Congés",null,"Ψ CDR","PACAUD"]
[null,"P","Privé",null,"T CDR Ψ","Test CDR Ψ",null,null,null,null,"AAM"]
[null,"M","Maladie",null,"T AMP","Test AMP",null,"TT","Télétravail"]
[null,"T","Test",null,"T AAM","Test AAM"]
[null,"ESE","Entretien ",null,"MOB AAM","Test MOB AAM ",null,"M","MEDICAL",null,"MOB CDR","CONCORDE"]
[null,"R","Réunion",null,"MOB AAM","Test MOB CDR Ψ",null,null,null,null,"MOB AAM"]
[null,"TT","Télétravail",null,null,null,null,"FORM","FORMATION"]
[null,"F","Forum",null,"ESE CDR","ESE CDR"]
[null,"T RFN Ψ","Test RFN Ψ",null,"ESE RFN","ESE RFN",null,"AT","ARRET TRAVAIL",null,"RFN","LAHY"]
[null,"T CDR Ψ","Test CDR Ψ",null,"ESE AMP","ESE AMP",null,null,null,null,"AMP"]
[null,"T AMP","Test AMP",null,"ESE AAM","ESE AAM",null,"G","GRÊVE"]
[null,"T AAM","Test AAM",null,"E MOB AAM","ESE MOB AAM"]
[null,"T MOB AAM","Test MOB AAM ",null,"E  MOB CDR","ESE MOB CDR",null,null,null,null,"Ψ CDR","LECTO"]
[null,"T MOB CDR Ψ","Test MOB CDR Ψ",null,"CAE","ESE CAE",null,null,null,null,"RFN"]
[null,"ESE CDR","ESE RFN",null,null,null,null,null,null,null,"Test MOB CDR Ψ"]
[null,"ESE RFN","ESE RFN"]
[null,"ESE AMP","ESE AMP"]
[null,"ESE AAM","ESE AAM"]
[null,"E MOB AAM","ESE MOB AAM"]
[null,"E  MOB CDR","ESE MOB CDR"]
[null,"CAE","ESE CAE"]

{"sheet":"RECAP 2023","index":14,"n_rows":0,"n_cols":0,"rows_kept":0,"cut":false,"hidden":false,"merged":[]}